Cogmind - Beta 10.2 @@@ ROGUE MODE // 2020.11.11 @ 02:01:57 Player: RIFFarcomWarbotZionCECR Result: Heading to fleet! Performance ------------- Evolutions (9) 4500 Regions Visited (43) 8600 Robots Destroyed (559) 2795 Value Destroyed (29565) 29565 Prototype IDs (112) 2240 Alien Tech Used (6) 1200 Bonus (53662) 53662 TOTAL SCORE: 102562 Bonus ------- High Alert Combat Kills 3098 Follower Combat Kills 2227 Entered Garrisons 1400 Used RIF Installer 3500 Network Hubs Disabled 400 Aligned with FarCom 300 Built Enhanced Grunts 300 Found Hidden Lab 3000 Used Core Reset Matrix 3000 Met R17 at Research 2000 Destroyed MAIN.C Guards 500 Met MAIN.C 5000 Destroyed MAIN.C Shell 5000 Destroyed MAIN.C 10000 Met Architect 300 Destroyed A8 300 Destroyed A6 400 Destroyed A5 500 Destroyed A4 700 Destroyed A3 800 Destroyed A2 1000 Destroyed Architect 15000 Win 3000 Friendly Fire -8063 Cogmind --------- Core Integrity 871/1600 Matter 141/300 Energy 3458/3490 System Corruption 8% Temperature Cool (0) Movement Hovering (16) Location To Fleet Rendezvous Parts ------- > --- POWER (2) -------- Improved Quantum Reactor Zero-point Reactor > --- PROPULSION (4) --- Cooled Linear Gravjet Cooled Linear Gravjet Cooled Linear Gravjet Cooled Linear Gravjet > --- UTILITY (16) ----- Experimental Energy Well Experimental Energy Well Experimental Energy Well Gravity Neutralizing Apparatus Gravity Neutralizing Apparatus Gravity Neutralizing Apparatus Experimental Melee Analysis Suite Experimental Melee Analysis Suite Experimental Melee Analysis Suite > --- WEAPON (4) ------- Plasma Sword Plasma Sword Plasma Sword Plasma Sword > --- INVENTORY (4) ---- Precision Matter Filter Advanced Particle Accelerator High-powered Transdimensional Reconstructor Deploy-a-Sentry Peak State ------------ > --- POWER ------------ Improved Quantum Reactor Zero-point Reactor > --- PROPULSION ------- Experimental Biometal Leg Experimental Biometal Leg Experimental Biometal Leg Experimental Biometal Leg > --- UTILITY ---------- Desublimator Experimental Coolant Injector High-capacity Storage Unit High-capacity Storage Unit High-capacity Storage Unit Experimental Energy Well Experimental Matter Compressor Enhanced Optical Array Surveybot 24 Chip Advanced Armor Integrity Analyzer Precision Matter Filter Experimental Weapon Cycler Centrium Light Armor Plating Experimental Powered Armor Beam Splitter Experimental Force Field > --- WEAPON ----------- Enhanced Nova Cannon Cooled Nova Cannon Compact Linear Accelerator Graviton Cannon > --- INVENTORY -------- Quantum Reactor Reinforced Quantum Reactor Experimental Biometal Leg Experimental Biometal Leg Experimental Biometal Leg Experimental Biometal Leg Dimensional Manipulator Surveybot 24 Scanner Precision Matter Filter Precision Energy Filter Advanced Particle Accelerator Experimental Phase Shifter Experimental Phase Shifter Centrium Light Armor Plating Experimental Force Field Long-range Tractor Beam Mini Drone Bay Long-range Gatling Laser Cooled Proton Cannon EMDS Helical Railgun Multirail Compact Linear Accelerator Hypervelocity Linear Accelerator Mini Smartbomb Launcher Deploy-a-Sentry [Rating: 243] Favorites ----------- Power Deuterium Engine Engine Deuterium Engine Power Core Cooled Fission Core Reactor Zero-point Reactor Propulsion Carbon-fiber Leg Treads Armored Treads Leg Carbon-fiber Leg Wheel Armored Wheel Hover Unit Cooled Linear Gravjet Flight Unit Cesium-ion Thruster Utility High-capacity Storage Unit Device Coolant Injector Storage High-capacity Storage Unit Processor Surveybot 24 Chip Hackware Improved Hacking Suite Protection Improved Utility Shielding Weapon Power Sword Energy Gun Tesla Rifle Energy Cannon Heavy Phase Cannon Ballistic Gun Hypervelocity Gauss Rifle Ballistic Cannon Graviton Cannon Launcher Mini Smartbomb Launcher Special Weapon Remote Datajack Impact Weapon Hammer Slashing Weapon Power Sword Piercing Weapon Spear Build | -11 -10 -10 -9 -9 -9 -8 -8 -8 -8 -8 -7 -7 -7 -7 -6 -6 -6 -6 -6 -6 -6 -5 -5 -5 -5 -5 -5 -5 -5 -5 -4 -4 -4 -4 -4 -4 -3 -3 -3 -2 -1 -1 -1 ------- Run | Scr Mat Min Mat Min Exi Min Mat Gar Mat Gar Fac Was Fac Gar Fac Gar Fac Low Low Zio Dee Pro Fac Was Fac Ext Cet Arc Hub Gar Fac Was Fac Gar Fac Gar Res Arm Lab Res Acc Com Ac0 Slots Evolved 18 | . . . 2 . . . 2 . . . 2 . . . 2 . . . . . . . 2 . . . . . . . 2 . . . . . 2 . . 2 2 . . Power 1 | . . . . . . . . . . . . . . . . . . . . . . . . . . . . . . . . . . . . . . . . 1 . . . Propulsion 2 | . . . . . . . 1 . . . . . . . . . . . . . . . 1 . . . . . . . . . . . . . . . . . . . . Utility 13 | . . . 1 . . . . . . . 2 . . . 2 . . . . . . . 1 . . . . . . . 2 . . . . . 2 . . 1 2 . . Weapon 2 | . . . 1 . . . 1 . . . . . . . . . . . . . . . . . . . . . . . . . . . . . . . . . . . . Parts Attached 809 | 8 31 6 10 . 3 . 20 11 . 10 11 12 1 3 16 13 8 33 25 24 14 19 23 11 5 6 12 10 16 3 12 1 4 6 4 5 14 45 5 4 40 134 171 Power 39 | 1 2 1 1 . . . 3 1 . 2 1 1 . . . 1 . 1 2 1 1 . 1 . . . . . . . . . . . 1 . . 1 . 1 2 8 6 Engine 14 | 1 2 . 1 . . . 2 . . 2 1 . . . . 1 . 1 1 1 1 . . . . . . . . . . . . . . . . . . . . . . Core 11 | . . 1 . . . . 1 1 . . . . . . . . . . 1 . . . 1 . . . . . . . . . . . 1 . . 1 . . 1 3 . Reactor 14 | . . . . . . . . . . . . 1 . . . . . . . . . . . . . . . . . . . . . . . . . . . 1 1 5 6 Propulsion 106 | 2 6 2 1 . . . 4 3 . 2 1 5 . . . 2 1 7 6 4 1 8 2 4 . 1 2 . . . . . . 1 . . 3 4 1 . . 10 23 Treads 62 | 2 4 1 1 . . . 4 3 . 2 1 5 . . . . 1 1 1 3 1 5 1 4 . 1 2 . . . . . . 1 . . 2 2 1 . . 10 3 Leg 23 | . . . . . . . . . . . . . . . . 2 . 2 3 1 . 1 1 . . . . . . . . . . . . . . . . . . . 13 Wheel 5 | . 2 1 . . . . . . . . . . . . . . . . . . . 2 . . . . . . . . . . . . . . . . . . . . . Hover 11 | . . . . . . . . . . . . . . . . . . 4 . . . . . . . . . . . . . . . . . . . 1 . . . . 6 Flight 5 | . . . . . . . . . . . . . . . . . . . 2 . . . . . . . . . . . . . . . . . 1 1 . . . . 1 Utility 407 | 3 5 1 4 . 3 . 4 2 . 1 5 2 1 . 10 5 5 15 13 12 8 8 6 4 3 3 6 8 15 2 9 1 4 5 2 2 8 30 3 3 24 75 87 Device 244 | 2 3 1 . . . . 1 . . . . . . . 3 3 4 8 6 8 1 2 1 2 1 3 2 7 11 2 6 1 1 3 1 2 6 26 1 . 20 48 58 Storage 39 | . 1 . 3 . 2 . . . . . 1 . . . 1 . . 4 3 1 1 2 3 1 . . . . . . . . . . . . . 1 . . 1 5 9 Processor 16 | 1 1 . . . . . . . . . . . . . 1 1 . . . 1 . 1 . . . . . . . . . . . . . . . . . . . 5 5 Hackware 14 | . . . . . . . . . . . . . . . . . . . . . . . . 1 1 . . . 3 . 1 . . . . . 2 . . 2 1 3 . Protection 94 | . . . 1 . 1 . 3 2 . 1 4 2 1 . 5 1 1 3 4 2 6 3 2 . 1 . 4 1 1 . 2 . 3 2 1 . . 3 2 1 2 14 15 Artifact . | . . . . . . . . . . . . . . . . . . . . . . . . . . . . . . . . . . . . . . . . . . . . Weapon 257 | 2 18 2 4 . . . 9 5 . 5 4 4 . 3 6 5 2 10 4 7 4 3 14 3 2 2 4 2 1 1 3 . . . 1 3 3 10 1 . 14 41 55 Energy Gun 25 | 2 9 2 1 . . . . . . . . . . . . . . . 2 . . . . . . . 1 . . . . . . . . . . . 1 . . 4 3 Energy Cannon 40 | . . . . . . . . . . . . . . . . . . 2 1 . 2 . 4 . . 1 . . . . 1 . . . . 1 . 1 . . 3 7 17 Ballistic Gun 112 | . 4 . 3 . . . 6 4 . 5 3 3 . 3 5 4 1 5 . 5 2 2 7 2 1 1 3 2 1 1 1 . . . 1 . 1 5 . . 6 23 2 Ballistic Cannon 31 | . 5 . . . . . . . . . . . . . . . . . . 2 . 1 . . . . . . . . . . . . . 1 1 . . . . . 21 Launcher 32 | . . . . . . . 2 1 . . . . . . 1 1 1 1 . . . . 1 . 1 . . . . . . . . . . 1 1 4 . . 4 6 7 Special Weapon 5 | . . . . . . . . . . . . . . . . . . . . . . . 1 1 . . . . . . 1 . . . . . . . . . 1 1 . Impact Weapon 1 | . . . . . . . . . . . . . . . . . . . . . . . 1 . . . . . . . . . . . . . . . . . . . . Slashing Weapon 9 | . . . . . . . 1 . . . . . . . . . . 2 1 . . . . . . . . . . . . . . . . . . . . . . . 5 Piercing Weapon 2 | . . . . . . . . . . . 1 1 . . . . . . . . . . . . . . . . . . . . . . . . . . . . . . . Special Melee Weapon . | . . . . . . . . . . . . . . . . . . . . . . . . . . . . . . . . . . . . . . . . . . . . Unidentified Prototypes 73 | . . . 1 . . . . . . . . . . . . . . 2 . 1 1 . 2 . . . 3 . . . . . . . . 1 2 4 3 1 . 21 31 Parts Lost 72 | . 1 . . . . . 1 8 . 4 2 . . . . 4 . 13 10 . . 6 . . . . . . . . 1 . . 1 . . . . . . . 5 16 Power 9 | . 1 . . . . . . 2 . . . . . . . 1 . 1 1 . . 1 . . . . . . . . . . . . . . . . . . . 1 1 Propulsion 12 | . . . . . . . . 1 . 1 . . . . . 1 . 3 3 . . 1 . . . . . . . . . . . . . . . . . . . . 2 Utility 28 | . . . . . . . 1 1 . . . . . . . 1 . 4 6 . . 2 . . . . . . . . 1 . . 1 . . . . . . . 2 9 Weapon 23 | . . . . . . . . 4 . 3 2 . . . . 1 . 5 . . . 2 . . . . . . . . . . . . . . . . . . . 2 4 Highest Loss Streak 7 | . 1 . . . . . 1 6 . 3 1 . . . . 4 . 7 7 . . 2 . . . . . . . . 1 . . 1 . . . . . . . 3 5 Average Slot Usage (%) 84 | . 98 99 95 100 89 88 89 86 81 88 91 82 74 75 79 85 86 82 71 84 99 96 93 89 81 77 86 88 81 77 78 80 80 84 89 85 80 76 74 82 82 83 86 Engine 3 | . 13 . . 11 11 11 9 . . 7 7 5 . . . 5 6 4 . 6 6 4 3 . . . . . . . . . . . . . . . . . . . . Core 1 | . . 13 10 . . . . 5 . . . . . . . . . . 2 . . . 1 5 5 5 5 5 5 5 5 5 5 5 4 5 4 4 4 4 3 1 . Reactor 1 | . . . . . . . . . . . . 1 7 7 6 . . . . . . . . . . . . . . . . . . . . . . . . 3 3 5 6 Treads 5 | . 27 16 22 22 22 22 27 27 27 26 23 17 15 15 13 6 9 10 1 . 17 16 4 9 11 11 11 11 11 11 10 10 10 10 10 10 9 8 9 8 7 6 1 Leg 9 | . . . . . . . . . . . . . . . . 5 9 4 10 17 . . . . . . . . . . . . . . . . . . . . . . 10 Device 12 | . 17 14 7 . . . 3 . . . . . . . 8 13 9 15 16 15 11 4 2 10 5 5 10 11 7 5 9 15 10 10 14 15 15 5 4 4 3 11 16 Storage 17 | . 1 14 17 22 15 11 9 9 9 9 7 7 7 7 7 13 13 14 12 17 14 12 20 19 22 22 22 22 22 22 20 20 20 20 20 20 18 20 22 20 19 20 19 Processor 2 | . 8 . . . . . . . . . . . . . . 5 2 . . . . 1 5 5 5 5 5 5 5 5 5 5 5 5 5 5 4 4 4 4 3 14 12 Protection 4 | . . . 3 11 7 11 4 8 9 9 23 19 13 15 16 6 6 4 1 . 22 27 19 7 5 5 10 10 3 5 5 5 10 13 14 13 9 9 6 12 10 6 4 Energy Gun 6 | . 20 21 12 . . . . . . . . . . . . . . . 7 11 . . . . . . . . . . . . . . . . . . 1 4 . . . Energy Cannon 3 | . . . . . . . . . . . . . . . . . . 2 4 5 . . 2 1 . . . . . . . . . . . 3 4 4 4 4 2 . 3 Ballistic Gun 8 | . 3 6 20 33 33 33 35 35 36 35 29 29 30 29 25 25 25 20 1 . 23 24 16 18 22 22 21 22 22 22 18 20 20 20 19 9 . 6 2 . 5 9 . Slashing Weapon 3 | . . . . . . . . . . . . . . . . . . 1 5 5 . . . . . . . . . . . . . . . . . . . . . . 1 Naked Turns 3 | . . . . . . . . . . . . . . . . . . . 1 . . . . . . . . . . . . . . . . . . . . . . . 2 Heaviest Build 254 | 8 20 20 39 36 105 100 103 103 98 117 119 129 130 130 158 154 182 173 126 115 116 112 142 155 197 197 197 162 200 197 200 198 199 199 180 175 188 234 234 248 242 244 254 Greatest Support 175 | 40 40 40 43 43 43 43 66 80 80 80 80 90 90 90 90 90 40 40 50 79 79 81 24 140 140 140 160 160 160 160 160 160 160 160 150 150 150 135 150 150 150 175 170 Greatest Overweight (x) 41 | . . 1 . . 2 2 2 1 1 2 1 1 1 1 1 7 4 8 41 37 4 8 5 5 1 1 1 1 1 1 1 1 1 1 1 1 1 3 1 1 1 2 16 Average Overweight (x) 4 | . . . . . 1 2 1 1 1 1 1 1 1 1 1 6 3 3 3 25 1 1 4 1 1 1 1 . . 1 1 1 1 1 1 1 1 1 1 1 1 1 . Largest Inventory Capacity 46 | 4 8 8 14 12 28 24 24 24 24 24 44 24 24 24 32 32 32 40 20 20 20 20 26 34 34 34 34 34 34 34 34 34 34 34 34 34 34 40 40 40 46 46 40 Average Capacity 25 | 4 4 8 10 12 22 24 24 24 24 24 24 24 24 24 25 32 32 30 19 20 20 20 23 31 34 34 34 34 34 34 34 34 34 34 34 34 34 38 40 40 41 41 29 Most Carried 46 | 4 8 8 12 12 22 22 24 24 23 24 24 24 24 24 27 32 32 36 20 20 20 20 26 33 34 34 34 34 34 34 34 32 34 34 34 34 34 40 40 39 40 46 40 Average Carried 24 | 1 4 7 9 12 17 22 23 22 21 23 23 23 23 23 23 26 30 28 15 19 19 18 22 29 32 33 33 33 32 34 32 30 32 33 33 32 32 35 35 39 38 38 26 Final Capacity 46 | 4 8 8 12 12 24 24 24 24 24 24 24 24 24 24 32 32 32 20 20 20 20 20 26 34 34 34 34 34 34 34 34 34 34 34 34 34 34 40 40 40 46 40 4 Final Carried 40 | 4 8 8 12 12 22 22 24 21 23 24 23 24 23 24 27 30 32 19 20 20 20 20 26 33 33 34 34 34 34 34 30 32 34 33 34 32 34 39 40 39 39 36 4 Class Distribution -------------------- 52% | Scavenger-Gunner 7% | Bothacker-Mutant 6% | Scavenger-Tank 6% | Scavenger-Mutant 4% | Bothacker-Skirmisher 3% | Hauler-Mutant 3% | Bothacker-Tank Dominant Class ---------------- Mutant | -10/Materials Mutant | -10/Mines Skirmisher | -9/Materials Tank | -9/Mines Hauler-Tank | -9/Exiles Hauler-Skirmisher | -8/Mines Hauler-Skirmisher | -8/Materials Hauler-Skirmisher | -8/Garrison Hauler-Skirmisher | -8/Materials Scavenger-Skirmisher | -8/Garrison Scavenger-Tank | -7/Factory Hauler-Tank | -7/Waste Hauler-Tank | -7/Factory Hauler-Tank | -7/Garrison Hauler-Gunner | -6/Factory Scavenger-Gunner | -6/Garrison Bothacker-Skirmisher | -6/Factory Bothacker-Mutant | -6/Lower Caves Hauler-Mutant | -6/Lower Caves Scavenger-Gunner | -6/Zion Scavenger-Tank | -6/Deep Caves Scavenger-Tank | -5/Proximity Caves Bothacker-Tank | -5/Factory Bothacker-Skirmisher | -5/Waste Bothacker-Skirmisher | -5/Factory Bothacker-Skirmisher | -5/Extension Bothacker-Tank | -5/Cetus Bothacker-Tank | -5/Archives Bothacker-Skirmisher | -5/Hub_04(d) Bothacker-Skirmisher | -5/Garrison Scavenger-Skirmisher | -4/Factory Scavenger-Skirmisher | -4/Waste Bothacker-Tank | -4/Factory Scavenger-Tank | -4/Garrison Bothacker-Mutant | -4/Factory Bothacker-Tank | -4/Garrison Botlord-Mutant | -3/Research Bothacker-Mutant | -3/Armory Bothacker-Mutant | -3/Lab Bothacker-Mutant | -2/Research Wizard-Mutant | -1/Access Scavenger-Gunner | -1/Command Scavenger-Mutant | -1/Access_0 Resources | -11 -10 -10 -9 -9 -9 -8 -8 -8 -8 -8 -7 -7 -7 -7 -6 -6 -6 -6 -6 -6 -6 -5 -5 -5 -5 -5 -5 -5 -5 -5 -4 -4 -4 -4 -4 -4 -3 -3 -3 -2 -1 -1 -1 ----------- Run | Scr Mat Min Mat Min Exi Min Mat Gar Mat Gar Fac Was Fac Gar Fac Gar Fac Low Low Zio Dee Pro Fac Was Fac Ext Cet Arc Hub Gar Fac Was Fac Gar Fac Gar Res Arm Lab Res Acc Com Ac0 Matter Collected 28115 | 238 419 38 134 . 20 111 904 534 43 534 388 338 . 134 602 480 347 1034 1212 1278 85 1023 715 683 258 1037 835 736 572 440 654 519 . 643 . 113 261 1382 . . 1268 4656 3447 Remotely 7538 | . . . . . . . . . . . . . . . . 258 194 . . 752 75 . . 683 . 132 216 395 419 100 462 519 . 58 . . . 214 . . 642 1494 925 Salvage Created 34161 | 269 751 82 80 . . 247 1157 558 57 817 641 86 . 99 947 514 370 762 652 553 25 702 1039 1412 351 1690 1403 737 679 491 1017 1633 . 1289 . 113 . 2007 . . 1606 5577 3748 Parts 1531 | 23 45 7 7 . . 12 67 47 3 45 30 7 . 6 58 24 16 29 32 49 3 17 41 32 22 83 65 47 41 27 52 16 . 52 . 2 . 107 . . 83 176 158 Haulers Intercepted 13 | . 2 . 1 . . . 3 . 1 . 1 . . . . . . . . . . . 2 . . . . . . . 1 . . . . . . . . . 2 . . Recyclers Shooed 17 | . 2 . . . . . 1 . . . . . . . 1 . . . . . . . 8 . . 2 . . . . . . . . . . . . . . 2 1 . Parts Field Recycled 12 | . . . . . . . . . . . . . . . . . . . . . . . . . . . . 1 . . . . . . . . . 7 . . . 4 . Retrieved Matter 397 | . . . . . . . . . . . . . . . . . . . . . . . . . . . . 135 . . . . . . . . . 198 . . . 64 . Parts Self-Destructed 59 | . . . . . . . . . . . . . . . . . . 17 19 3 . 20 . . . . . . . . . . . . . . . . . . . . . Prevented 8 | . . . . . . . . . . . . . . . . . . 3 1 . . 4 . . . . . . . . . . . . . . . . . . . . . Kills | -11 -10 -10 -9 -9 -9 -8 -8 -8 -8 -8 -7 -7 -7 -7 -6 -6 -6 -6 -6 -6 -6 -5 -5 -5 -5 -5 -5 -5 -5 -5 -4 -4 -4 -4 -4 -4 -3 -3 -3 -2 -1 -1 -1 ------- Run | Scr Mat Min Mat Min Exi Min Mat Gar Mat Gar Fac Was Fac Gar Fac Gar Fac Low Low Zio Dee Pro Fac Was Fac Ext Cet Arc Hub Gar Fac Was Fac Gar Fac Gar Res Arm Lab Res Acc Com Ac0 Combat Hostiles Destroyed 425 | . 13 2 . . . 5 21 21 1 18 10 . . 4 15 15 7 11 12 . . 10 3 5 3 19 12 4 7 8 14 6 . 22 . 2 . 37 . . 18 53 47 Melee 4 | . . . . . . . . . . . 1 . . . . . . . . . . . . . . 2 . . . . . . . . . . . . . . . . 1 Guns 291 | . 4 2 . . . 5 21 15 1 18 7 . . 4 10 11 4 8 10 . . 10 3 5 3 17 12 4 7 8 14 6 . 22 . . . 14 . . 13 30 3 Cannons 29 | . 7 . . . . . . . . . . . . . . . . . 1 . . . . . . . . . . . . . . . . 1 . 8 . . 2 1 9 AOE 59 | . 2 . . . . . . 6 . . 2 . . . 4 4 3 3 . . . . . . . . . . . . . . . . . . . 13 . . 1 12 9 Classes Destroyed 29 | 2 7 . . . . . 3 1 . . 1 1 . . 1 . 2 2 3 1 . 1 . 1 . . . . . 1 1 . . 1 . . . . . . . . . Worker 13 | . 1 . . . . . 1 . . . . . . . 3 . . . . . . . . . 1 . . . 3 . 1 . . . . . . . . . . 3 . Builder 9 | . 1 . . . . . 3 . . . . . . . 1 . . . . . . . . . . . . . 1 . 2 . . . . . . . . . 1 . . Tunneler 10 | 7 1 . . . . . . . . . 1 . . . . . . . . . . . . . . . . . . . 1 . . . . . . . . . . . . Hauler 13 | . 2 . 1 . . . 3 . 1 . 1 . . . . . . . . . . . 2 . . . . . . . 1 . . . . . . . . . 2 . . Recycler 16 | 1 2 . . . . . . . . . 1 . . . 2 . . . . . . . 5 . 1 1 . . . . . . . . . . . . . . 1 2 . Carrier 1 | . . . . . . . . . . . . . . . . . . . . . . . . . . . . . . . 1 . . . . . . . . . . . . Minesweeper 1 | . . . . . . . . . . . . . . . . . . . . . . 1 . . . . . . . . . . . . . . . . . . . . . Mechanic 2 | . . . . . . . . . . . . . . . . . 1 . . . . . . . . . . . . . . . . . . . . . . . . 1 . Operator 13 | . 1 . . . . . . . . . . . . . . . . . . . . . . . . 1 . 8 1 . . . . . . . . 1 . . . 1 . Watcher 11 | . 2 . 1 . . . . . . . . . . . . . . . . . . . 1 . . 2 . . . . . . . . . . . 3 . . . 2 . Swarmer 92 | . 3 . . . . . 4 11 1 4 . . . 4 7 8 . 4 5 . . 4 . . . . 1 . . . 5 . . 8 . . . 12 . . . 11 . Saboteur 2 | . . . . . . . . . . . . . . . . . . . . . . . . . . . . . . 2 . . . . . . . . . . . . . Grunt 114 | . 10 2 . . . 5 8 5 . 9 7 . . . . 4 2 5 . . . 2 2 . . 12 4 . . 2 6 . . 9 . 2 . 8 . . 4 6 . Brawler 6 | . . . . . . . 1 1 . . . . . . . . 1 1 . . . . . . . . 1 . . . . . . . . . . . . . . 1 . Duelist 7 | . . . . . . . . . . . 2 . . . . 1 1 . . . . . . . . 1 . . . . . . . . . . . 1 . . . 1 . Protector 6 | . . . . . . . . . . . . . . . . . 1 . . . . . . . . . . . 1 . 1 . . . . . . . . . . 3 . Researcher 1 | . . . . . . . . . . . . . . . . . . 1 . . . . . . . . . . . . . . . . . . . . . . . . . Sentry 42 | . . . . . . . 7 3 . 4 1 . . . . . 1 . . . . 2 1 . 1 5 . 4 3 2 . . . . . . . 2 . . 2 4 . Demolisher 2 | . . . . . . . . . . . . . . . . . . . . . . . . . . . . . . . . . . . . . . 1 . . . 1 . Specialist 3 | . . . . . . . . . . . . . . . . . . . . . . . . . . . . . . . . . . 2 . . . . . . . 1 . Hunter 19 | . . . . . . . 1 . . . . . . . 4 . . . 1 . . 1 . . . . . . . 1 2 . . 2 . . . . . . . 7 . Programmer 46 | . . . . . . . . . . . . . . . 3 2 1 . . . . . . . 2 . . . . . . . . . . . . 13 . . 12 13 . Behemoth 9 | . . . . . . . . 1 . 1 . . . . 1 . . 1 . . . 1 . . . 1 . . . 1 . . . 1 . . . . . . . 1 . Compactor 11 | . . . . . . . . . . . . . . . . . . . . . . . . 5 . . . . . . . 6 . . . . . . . . . . . Cetus Guard 6 | . . . . . . . . . . . . . . . . . . . . . . . . . . . 6 . . . . . . . . . . . . . . . . M Guard 2 | . . . . . . . . . . . . . . . . . . . . . . . . . . . . . . . . . . . . . . . . . . 2 . Enhanced Grunt 31 | . . . . . . . . . . . . . . . . . . . . . . . . . . . 1 . . . . . . . . . . . . . . . 30 Enhanced Sentry 3 | . . . . . . . . . . . . . . . . . . . . . . . . . . . . . . . . . . . . . . . . . . . 3 Enhanced Hunter 7 | . . . . . . . . . . . . . . . . . . . . . . . . . . . . . . . . . . . . . . . . . . . 7 Lightning 3 | . . . . . . . . . . . . . . . . . . . . . . . . . . . . . 3 . . . . . . . . . . . . . . Combat Programmer 2 | . . . . . . . . . . . . . . . . . . . . . . . . . . . . . . . . . . . . . . . . . . 2 . Zionite 30 | . . . . . . . . . . . . . . . . . . . . 30 . . . . . . . . . . . . . . . . . . . . . . . Z-Technician 3 | . . . . . . . . . . . . . . . . . . . . . 3 . . . . . . . . . . . . . . . . . . . . . . Samaritan 3 | . . . . . . . . . . . . . . . . . . . 3 . . . . . . . . . . . . . . . . . . . . . . . . Tinkerer 2 | . . . . . . . . . . . . . . . . . . 1 . 1 . . . . . . . . . . . . . . . . . . . . . . . Thief 2 | . . . . . . . . . . . . . . . . . . . 2 . . . . . . . . . . . . . . . . . . . . . . . . Thug 2 | . . . . . . . . . . . . . . . . . . . 1 . . . . . . . 1 . . . . . . . . . . . . . . . . Savage 3 | . . . . . . . . . . . . . . . . . . 1 . . . . . . . . 2 . . . . . . . . . . . . . . . . Butcher 3 | . . . . . . . . . . . . . . . . . . . 3 . . . . . . . . . . . . . . . . . . . . . . . . Martyr 2 | . . . . . . . . . . . . 2 . . . . . . . . . . . . . . . . . . . . . . . . . . . . . . . Guerrilla 3 | . . . . . . . . . . . . . . . . . . . . . . . . . . 1 2 . . . . . . . . . . . . . . . . Mutant 1 | . . . . . . . . . . . . . . . . . . . 1 . . . . . . . . . . . . . . . . . . . . . . . . Best Kill Streak 22 | 2 4 2 1 . . 5 6 8 1 6 5 . . 4 8 5 5 4 4 6 3 5 3 2 3 6 4 4 5 3 9 2 . 13 . 2 . 6 . . 7 22 9 Combat Bots Only 18 | . 3 2 . . . 5 6 8 1 6 3 . . 4 6 5 5 4 4 . . 5 2 2 2 4 4 1 5 3 7 2 . 13 . 2 . 6 . . 7 18 9 Max Kills in Single Turn 5 | 1 3 1 1 . . 1 2 3 1 1 4 1 . 1 4 3 2 1 1 1 1 2 1 1 1 2 1 1 3 2 4 1 . 2 . 1 . 4 . . 1 5 2 Gunslinging 2 | . . . . . . . 1 2 . . . . . . 1 1 . . . . . . . . . 1 . . 2 1 2 . . 1 . . . . . . . 1 . Exploded 5 | . 1 . . . . . . 3 . . 2 . . . 2 2 2 1 . . . . . . . . . . . . . . . . . . . 4 . . 1 5 2 Melee 1 | . . . . . . . . . . . 1 . . . . . . . . . . . . . . 1 . . . . . . . . . . . . . . . . 1 Uniques/NPCs Destroyed 11 | . . . . . . . . . . . . . . . . . . . . 1 . . . . . . 1 . . . . . . . . . . . . . . 2 7 Imprinter (-6/Zion) A7 (-5/Cetus) MAIN.C Shell (-1/Command) MAIN.C (-1/Command) A8 (-1/Access_0) A6 (-1/Access_0) A5 (-1/Access_0) A2 (-1/Access_0) A4 (-1/Access_0) A3 (-1/Access_0) Architect (-1/Access_0) Combat | -11 -10 -10 -9 -9 -9 -8 -8 -8 -8 -8 -7 -7 -7 -7 -6 -6 -6 -6 -6 -6 -6 -5 -5 -5 -5 -5 -5 -5 -5 -5 -4 -4 -4 -4 -4 -4 -3 -3 -3 -2 -1 -1 -1 -------- Run | Scr Mat Min Mat Min Exi Min Mat Gar Mat Gar Fac Was Fac Gar Fac Gar Fac Low Low Zio Dee Pro Fac Was Fac Ext Cet Arc Hub Gar Fac Was Fac Gar Fac Gar Res Arm Lab Res Acc Com Ac0 Damage Taken 37876 | . 377 50 . . . 115 938 1542 . 1039 1046 . . 201 1657 686 194 1553 2461 336 . 1295 355 . 86 1118 49 282 456 817 1156 . . 1947 231 81 33 782 . . 1253 6085 9655 Core 2313 | . 24 15 . . . . 36 69 . 89 149 . . 12 183 33 . 137 226 37 . 51 . . 1 . . . . . 69 . . 13 . . 11 2 . . . 369 787 Absorbed by Shields 8288 | . . . . . . . 50 . . . . . . . . . . 12 . 71 . 274 . . . . . . . . . . . . . . . . . . . 2151 5730 Reduced by Siege Mode 1341 | . . . . . . . . . . . . . . . . 18 . . . . . . . . 3 63 . 12 18 29 95 . . 108 . . . 56 . . 54 511 374 Core Remaining (%) 80 | 100 . 84 . . . 100 . . . 64 . . . 77 . . . . . . . 21 . . . . . . . 99 . . . . . 92 . . 99 100 . . 54 Volleys Fired 1898 | 15 60 3 2 . . 9 57 37 2 41 25 . . 6 39 22 15 41 71 54 29 83 40 40 11 50 54 36 36 28 47 31 . 38 . 16 2 89 10 . 58 265 436 Largest 4 | 2 2 2 3 . . 3 4 4 4 4 4 . . 4 4 4 4 2 3 4 4 4 4 4 4 4 4 4 4 4 4 4 . 4 . 2 1 3 1 . 3 4 4 Hottest 430 | 80 80 46 120 . . 69 97 107 107 109 99 . . 106 114 114 114 63 232 285 98 98 279 204 132 132 174 132 136 138 138 138 . 138 . 80 80 130 70 . 130 173 430 Shots Fired 4504 | 30 94 6 6 . . 27 222 117 8 156 94 . . 24 140 76 56 50 93 200 32 232 122 89 41 197 174 144 100 103 135 124 . 137 . 17 2 139 10 . 108 591 608 Gun 3581 | 30 61 6 6 . . 27 220 110 8 156 94 . . 24 138 73 53 35 83 153 4 232 102 73 40 196 174 144 100 103 132 124 . 137 . 4 . 98 . . 82 497 62 Cannon 752 | . 33 . . . . . . . . . . . . . . . . 12 10 47 28 . 17 11 . 1 . . . . 1 . . . . 12 . 31 10 . 20 65 454 Launcher 145 | . . . . . . . 2 7 . . . . . . 2 3 3 3 . . . . . . 1 . . . . . . . . . . 1 2 10 . . 5 14 92 Special 26 | . . . . . . . . . . . . . . . . . . . . . . . 3 5 . . . . . . 2 . . . . . . . . . 1 15 . Kinetic 3719 | . 40 6 3 . . 27 220 110 8 156 94 . . 24 138 73 53 35 54 162 4 232 105 73 40 196 159 144 100 103 132 124 . 137 . 8 . 98 . . 81 451 329 Thermal 277 | . . . . . . . . . . . . . . . . . . . 19 26 28 . 14 11 . . 15 . . . . . . . . . . . . . . 64 100 Explosive 95 | . . . . . . . 2 7 . . . . . . 2 3 3 3 . . . . . . 1 . . . . . . . . . . 1 2 10 . . 5 10 46 Electromagnetic 387 | 30 54 . 3 . . . . . . . . . . . . . . 12 20 12 . . . . . 1 . . . . 1 . . . . 8 . 31 10 . 21 51 133 Robot Hit Streak 115 | 5 11 17 21 . . 33 30 44 7 30 30 . . 2 23 19 6 12 9 10 2 51 13 14 16 32 31 21 13 42 31 39 . 19 . 15 . 27 . . 50 54 115 Robot Miss Streak 9 | 3 4 . . . . 1 3 4 . 4 2 . . 5 2 4 3 6 8 5 1 9 7 2 1 4 4 1 2 2 2 1 . 1 . 2 . 3 . . 1 3 5 Penetration Max 3 | . . . . . . . 1 1 . 1 1 . . 1 1 1 . . 1 . . . 2 1 . 2 3 1 1 . 1 1 . 1 . . . 1 . . 1 1 . Secondary Targets 67 | . 1 . . . . 1 4 7 . 4 . . . . 2 3 1 . . 1 . . . . . 4 2 . 3 1 10 2 . 12 . . . 1 . . . 8 . Max Gunslinging Chain 3 | . 1 . . . . 1 1 3 . 1 . . . . 1 2 1 . . 1 . . . . . 1 1 . 2 1 3 1 . 2 . . . 1 . . . 2 . Capacitor 108 | . . . . . . . . . . . . . . . . . . . . . . . . . . . . . . . . . . . . . . . . . . 108 . Shots Hit Robots 3195 | 11 57 6 4 . . 24 155 81 3 85 81 5 . 7 77 48 36 52 83 118 1 183 65 73 26 153 137 113 41 91 92 102 . 103 . 8 . 101 . . 86 450 437 Core Hits 1483 | 7 34 3 3 . . 14 51 52 2 35 34 2 . 5 39 23 23 50 41 41 5 66 33 13 16 78 69 41 22 24 33 19 . 45 . 8 . 63 . . 36 197 256 Critical Hits 435 | . . . . . . . 2 1 . . . . . . 4 3 2 . 1 . . 1 21 21 7 54 50 37 14 13 12 12 . 21 . . . 21 . . 10 73 55 Critical Kills 125 | . . . . . . . 2 . . . . . . . . 1 . . . . . 1 9 5 3 20 17 10 7 1 5 4 . 8 . . . 9 . . 5 11 7 Critical Parts Destroyed 213 | . . . . . . . . 1 . . . . . . 4 2 1 . 1 . . . 12 3 4 23 21 16 7 6 7 1 . 11 . . . 12 . . 5 42 34 Melee Attacks 46 | . . . . . . . 1 . . . 1 5 . . . . . 11 6 1 . . . . . . . . . . . . . . . . . . . . . . 21 Impact . | . . . . . . . . . . . . . . . . . . . . . . . . . . . . . . . . . . . . . . . . . . . . Slashing 40 | . . . . . . . 1 . . . . . . . . . . 11 6 1 . . . . . . . . . . . . . . . . . . . . . . 21 Piercing 6 | . . . . . . . . . . . 1 5 . . . . . . . . . . . . . . . . . . . . . . . . . . . . . . . Sneak Attacks 12 | . . . . . . . . . . . . 5 . . . . . 1 5 1 . . . . . . . . . . . . . . . . . . . . . . . Combat Hostiles . | . . . . . . . . . . . . . . . . . . . . . . . . . . . . . . . . . . . . . . . . . . . . Follow-up Attacks 8 | . . . . . . . . . . . . . . . . . . . . . . . . . . . . . . . . . . . . . . . . . . . 8 Damage Inflicted 89307 | 402 1194 89 72 . . 325 2839 2036 63 1581 1635 472 . 203 2633 1612 1077 1774 1765 1999 347 1944 887 809 367 1175 1330 841 887 1555 2047 2590 . 2829 44 237 11 5901 . . 3832 16849 23054 Guns 49179 | 252 434 89 59 . . 325 2750 1529 63 1573 1228 . . 203 2009 1217 685 533 1053 1003 14 1893 508 418 222 1163 1285 694 530 1555 1895 2590 . 2829 . . . 2794 . . 2667 11500 1617 Cannons 21622 | . 464 . . . . . . . . . . . . . . . . 189 141 744 . . 266 391 . . . . . . . . . . . 237 . 1426 . . 833 2538 14393 Explosions 13156 | 120 280 . . . . . . 507 . . 346 . . . 581 395 392 337 . 117 . . 74 . . . . . 306 . . . . . . . . 1681 . . 281 2015 5724 Melee 2624 | . . . . . . . . . . . 34 472 . . . . . 418 571 135 . . . . . . . . . . . . . . . . . . . . . . 994 Ramming 2726 | 30 16 . 13 . . . 89 . . 8 27 . . . 43 . . 297 . . 333 51 39 . 145 12 45 147 51 . 152 . . . 44 . 11 . . . 51 796 326 Kinetic 58716 | . 551 89 17 . . 325 2750 1529 63 1573 1228 . . 203 2009 1217 685 533 607 1231 14 1893 559 418 222 1163 972 694 530 1555 1895 2590 . 2829 . 127 . 2794 . . 2646 10852 12353 Thermal 6899 | 120 77 . . . . . . . . . . . . . 322 . . . 218 558 . . 289 391 . . 313 . . . . . . . . . . . . . . 2256 2355 Explosive 9699 | . 138 . . . . . . 507 . . 346 . . . 259 395 392 337 . . . . . . . . . . . . . . . . . . . 1681 . . 281 1805 3558 Electromagnetic 8643 | 252 412 . 42 . . . . . . . . . . . . . . 189 369 75 . . . . . . . . 306 . . . . . . 110 . 1426 . . 854 1140 3468 Impact . | . . . . . . . . . . . . . . . . . . . . . . . . . . . . . . . . . . . . . . . . . . . . Slashing 2118 | . . . . . . . . . . . . . . . . . . 418 571 135 . . . . . . . . . . . . . . . . . . . . . . 994 Piercing 506 | . . . . . . . . . . . 34 472 . . . . . . . . . . . . . . . . . . . . . . . . . . . . . . . Highest Corruption 16 | . 1 1 . . . . . . . . . . . . 1 2 2 5 . . . 1 . . . . . . . . . 1 1 2 2 2 . . . . 5 16 8 Average Corruption 3 | . 1 1 . . . . . . . . . . . . 1 1 2 2 . . . 1 . . . . . . . . . 1 1 1 2 2 . . . . 3 7 3 Corruption Purged 34 | . . . . . . . . . . . . . . . . . . 5 . . . . . . . . . . . . . . . . . . . . . . . 29 . Effects 393 | . 1 . . . . . . . . . . . . . 3 9 5 31 . . . 6 . . . . . . . . . . . 6 4 4 . . . . 25 219 80 Message Errors 115 | . . . . . . . . . . . . . . . . 5 2 12 . . . 3 . . . . . . . . . . . 3 2 2 . . . . 9 47 30 Matter Fused 53 | . . . . . . . . . . . . . . . . . . . . . . . . . . . . . . . . . . . . . . . . . 3 38 12 Heat Flow Errors 35 | . . . . . . . . . . . . . . . . 1 . 8 . . . . . . . . . . . . . . . 1 . . . . . . 4 15 6 Energy Discharges 46 | . . . . . . . . . . . . . . . . 1 1 6 . . . 1 . . . . . . . . . . . 1 2 . . . . . 3 23 8 Parts Rejected 3 | . . . . . . . . . . . . . . . . . . . . . . . . . . . . . . . . . . . . . . . . . . 3 . Data Loss (minor) 30 | . 1 . . . . . . . . . . . . . . 2 . 1 . . . . . . . . . . . . . . . 1 . . . . . . 2 16 7 Data Loss (major) 11 | . . . . . . . . . . . . . . . . . . . . . . . . . . . . . . . . . . . . . . . . . 1 5 5 Misfires 11 | . . . . . . . . . . . . . . . . . . 1 . . . . . . . . . . . . . . . . . . . . . . 1 7 2 Alerts 3 | . . . . . . . . . . . . . . . . . . . . . . . . . . . . . . . . . . . . . . . . . . 3 . Misdirections 2 | . . . . . . . . . . . . . . . . . . . . . . . . . . . . . . . . . . . . . . . . . . 2 . Targeting Errors 73 | . . . . . . . . . . . . . . . 3 . 2 3 . . . 2 . . . . . . . . . . . . . 1 . . . . 2 51 9 Weapon Failures 11 | . . . . . . . . . . . . . . . . . . . . . . . . . . . . . . . . . . . . 1 . . . . . 9 1 Overload Shots 31 | . . . . . . . . . . . . . . . . . . . . . . . . . . . . . . . . . . . . . . . . . . . 31 Effects 6 | . . . . . . . . . . . . . . . . . . . . . . . . . . . . . . . . . . . . . . . . . . . 6 Short Circuit 1 | . . . . . . . . . . . . . . . . . . . . . . . . . . . . . . . . . . . . . . . . . . . 1 Meltdown 5 | . . . . . . . . . . . . . . . . . . . . . . . . . . . . . . . . . . . . . . . . . . . 5 Overflow Damage 1585 | . 29 . . . . . 6 11 . . 2 68 . . 27 10 . 50 174 85 12 . 30 . 44 . . 23 52 . 2 . . . 3 . . 4 . . 70 456 427 Projectiles 351 | . 17 . . . . . . . . . . . . . . . . . . . . . 30 . . . . . . . . . . . . . . 2 . . 26 103 173 Explosions 535 | . 12 . . . . . . 11 . . 2 . . . 23 10 . . . . . . . . . . . . 52 . . . . . . . . 2 . . 44 203 176 Melee 699 | . . . . . . . 6 . . . . 68 . . 4 . . 50 174 85 12 . . . 44 . . 23 . . 2 . . . 3 . . . . . . 150 78 Knockbacks 106 | . 9 . . . . . . . . . . . . . . . . 2 . 4 . 1 3 . 2 . . 1 . . . . . . . 5 1 . . . 1 9 68 Impact 19 | . . . . . . . . . . . . . . . . . . 2 . . . 1 2 . 2 . . 1 . . . . . . . . 1 . . . 1 8 1 Kinetic 85 | . 9 . . . . . . . . . . . . . . . . . . 3 . . 1 . . . . . . . . . . . . 5 . . . . . . 67 Secondary 2 | . . . . . . . . . . . . . . . . . . . . 1 . . . . . . . . . . . . . . . . . . . . . 1 . Self-Inflicted Damage 988 | . 52 . . . . . 30 . . . 220 . . . . . . 26 . . . . 50 . . . . . 10 . . . . . . . 34 31 . . 171 . 364 Shots 35 | . 1 . . . . . 2 . . . 3 . . . . . . 2 . . . . 1 . . . . . 1 . . . . . . . 1 1 . . 3 . 20 Rammed 223 | 12 10 . 4 . . . 8 . . 1 2 . . . 6 . . 34 . . 57 6 4 . 6 1 4 5 4 . 7 . . . 2 . 1 . . . 3 43 3 Targets Rammed 248 | 13 10 . 4 . . . 9 . . 1 2 . . . 6 . . 39 . . 60 7 4 . 6 3 4 5 5 . 8 . . . 2 . 1 . . . 3 45 11 Kicked 8 | . . . . . . . . . . . . . . . . . . . . . . . . . . . . . . . . . . . . . . . . . . . 8 Crushed 17 | 1 . . . . . . 1 . . . . . . . . . . 5 . . 3 1 . . . 2 . . 1 . 1 . . . . . . . . . . 2 . Highest Temperature 437 | 54 90 8 57 . . 27 70 169 18 267 248 . . 244 313 187 197 270 199 200 200 247 329 208 234 21 88 13 201 6 65 56 . 138 . 18 9 253 108 . 211 326 437 Average Temperature 66 | 16 28 4 22 . . 14 19 75 12 95 73 . . 102 123 86 88 65 133 64 85 65 92 122 110 5 6 2 88 4 19 23 . 26 . 11 9 62 53 . 61 80 63 Received Heat Transfer 3946 | . 117 27 . . . 63 204 249 . 315 279 . . . 48 54 81 254 81 41 . 57 162 . . 294 . 18 72 129 213 . . 165 . 33 . 105 . . 18 130 737 Effects 8 | . . . . . . . . . . . 1 . . . 3 . . . . . . . 3 . . . . . . . . . . . . . . . . . . . 1 Shutdowns 1 | . . . . . . . . . . . . . . . . . . . . . . . . . . . . . . . . . . . . . . . . . . . 1 Interference 7 | . . . . . . . . . . . 1 . . . 3 . . . . . . . 3 . . . . . . . . . . . . . . . . . . . . Siege Activations 88 | . . . . . . . . . . . . . . . 1 1 . . . . . . . . 2 10 4 5 2 4 2 4 . 6 . 1 . 7 . . 8 18 13 Total Turns 4277 | . . . . . . . . . . . . . . . 6 15 . . . . . . . . 24 143 24 137 40 122 43 277 . 94 . 11 . 180 . . 270 2714 177 Longest Duration 1387 | . . . . . . . . . . . . . . . 6 15 . . . . . . . . 19 53 10 44 35 56 36 130 . 25 . 11 . 54 . . 78 1387 30 Robots Corrupted 45 | . . . . . . . . . . . . . . . . . . . 1 . . . . . . . . . 1 . . . . . . 1 . 4 . . 4 9 25 Combat Hostiles 40 | . . . . . . . . . . . . . . . . . . . 1 . . . . . . . . . . . . . . . . 1 . 2 . . 2 9 25 Parts Fried 106 | 3 1 . . . . . . . . . . . . . 2 . . . 2 . . . . . . . . 2 . . . . . . . 2 . 16 . . 5 13 60 Impact Corruptions 20 | . . . . . . . 1 . . . . . . . 1 . . 3 . . 3 . . . 2 . . 1 . . 1 . . . 1 . . . . . . 5 2 Robots Melted 1 | . . . . . . . . . . . . . . . . . . . . . . . . . . . . . . . . . . . . . . . . . . 1 . Combat Hostiles 1 | . . . . . . . . . . . . . . . . . . . . . . . . . . . . . . . . . . . . . . . . . . 1 . Parts Melted 3 | 1 . . . . . . . . . . . . . . . . . . . . . . 1 . . . . . . 1 . . . . . . . . . . . . . Heat Transferred 5596 | 150 100 . . . . . . . . . . . . . 250 . . . 296 559 . . 272 407 . . 555 . . . . . . . . . . . . . . 1177 1830 Parts Sabotaged . | . . . . . . . . . . . . . . . . . . . . . . . . . . . . . . . . . . . . . . . . . . . . Parts Stolen 1 | . . . . . . . . . . . . . . . . . . . 1 . . . . . . . . . . . . . . . . . . . . . . . . Parts Stripped . | . . . . . . . . . . . . . . . . . . . . . . . . . . . . . . . . . . . . . . . . . . . . Power Chain Reactions 10 | 3 3 . . . . . . . . . . . . . . . . . . 1 . . . . . . . . . . . . . . . . . . . . . . 3 Missiles Intercepted . | . . . . . . . . . . . . . . . . . . . . . . . . . . . . . . . . . . . . . . . . . . . . Alert | -11 -10 -10 -9 -9 -9 -8 -8 -8 -8 -8 -7 -7 -7 -7 -6 -6 -6 -6 -6 -6 -6 -5 -5 -5 -5 -5 -5 -5 -5 -5 -4 -4 -4 -4 -4 -4 -3 -3 -3 -2 -1 -1 -1 ------- Run | Scr Mat Min Mat Min Exi Min Mat Gar Mat Gar Fac Was Fac Gar Fac Gar Fac Low Low Zio Dee Pro Fac Was Fac Ext Cet Arc Hub Gar Fac Was Fac Gar Fac Gar Res Arm Lab Res Acc Com Ac0 Peak Influence 1006 | 40 286 170 187 72 . 130 290 716 404 697 724 217 14 415 613 743 499 . . . . . 156 21 123 286 583 363 619 639 1006 372 140 618 360 454 260 557 . 16 527 364 . Initial 389 | . . 105 . 72 . . 50 61 349 262 365 217 11 9 217 373 389 . . . . . 16 21 . 31 112 233 58 384 335 352 140 110 324 252 255 . . . 9 336 . Average 244 | 19 182 103 60 72 . 100 99 415 382 469 522 142 13 308 237 583 417 . . . . . 67 18 36 102 369 266 314 560 711 292 140 431 335 341 85 274 . 3 206 139 . Maximum Alert Level 3 | . 1 . . . . . 1 3 2 2 3 1 . 2 2 3 2 . . . . . . . . 1 2 1 2 2 3 1 . 2 1 2 1 2 . . 2 3 . Low Security (%) 41 | 100 61 100 100 100 . 100 90 10 . . . 36 100 14 33 . . . . . . . 100 100 100 79 5 29 42 . . 23 100 19 . . 96 24 . 100 70 24 . Level 1 21 | . 38 . . . . . 9 33 89 30 31 63 . 64 47 5 19 . . . . . . . . 20 47 70 10 16 6 76 . 4 100 61 3 56 . . . 10 . Level 2 18 | . . . . . . . . 44 10 69 61 . . 21 19 85 80 . . . . . . . . . 47 . 47 83 43 . . 75 . 38 . 18 . . 29 1 . Level 3 17 | . . . . . . . . 12 . . 7 . . . . 8 . . . . . . . . . . . . . . 50 . . . . . . . . . . 63 . Level 4 . | . . . . . . . . . . . . . . . . . . . . . . . . . . . . . . . . . . . . . . . . . . . . Level 5 . | . . . . . . . . . . . . . . . . . . . . . . . . . . . . . . . . . . . . . . . . . . . . High Security . | . . . . . . . . . . . . . . . . . . . . . . . . . . . . . . . . . . . . . . . . . . . . Max Security . | . . . . . . . . . . . . . . . . . . . . . . . . . . . . . . . . . . . . . . . . . . . . Squads Dispatched 62 | . 3 . 1 . . . 6 . . . 1 . . . 4 . 4 . . . . . 7 . 2 1 . . 4 . 6 . . . . . 6 4 . . 7 6 . Investigation 17 | . 1 . 1 . . . 4 . . . 1 . . . . . 1 . . . . . 2 . 1 1 . . 2 . . . . . . . 3 . . . . . . Extermination 22 | . . . . . . . . . . . . . . . 3 . 2 . . . . . 1 . 1 . . . . . . . . . . . . 4 . . 5 6 . Reinforcement 8 | . 2 . . . . . . . . . . . . . . . . . . . . . . . . . . . . . 1 . . . . . 3 . . . 2 . . Assault 4 | . . . . . . . . . . . . . . . . . 1 . . . . . . . . . . . . . 3 . . . . . . . . . . . . Garrison 11 | . . . . . . . 2 . . . . . . . 1 . . . . . . . 4 . . . . . 2 . 2 . . . . . . . . . . . . Intercept . | . . . . . . . . . . . . . . . . . . . . . . . . . . . . . . . . . . . . . . . . . . . . Construction Impeded 1 | . . . . . . . . . . . . . . . . . . . . . . . . . . . . . . . . . . . . . . . . . 1 . . Haulers Reinforced 3 | . . . . . . . . . . . . . . . . . . . . . . . . . . . . . . . 1 . . . . . 1 . . . 1 . . Stealth | -11 -10 -10 -9 -9 -9 -8 -8 -8 -8 -8 -7 -7 -7 -7 -6 -6 -6 -6 -6 -6 -6 -5 -5 -5 -5 -5 -5 -5 -5 -5 -4 -4 -4 -4 -4 -4 -3 -3 -3 -2 -1 -1 -1 --------- Run | Scr Mat Min Mat Min Exi Min Mat Gar Mat Gar Fac Was Fac Gar Fac Gar Fac Low Low Zio Dee Pro Fac Was Fac Ext Cet Arc Hub Gar Fac Was Fac Gar Fac Gar Res Arm Lab Res Acc Com Ac0 Distress Signals 97 | . 4 . 3 . . . 3 . . . 1 . . . 2 . 1 . . . . 41 2 . . 3 2 . 2 . 1 . . . . . 13 4 . . . 15 . Communications Jammed . | . . . . . . . . . . . . . . . . . . . . . . . . . . . . . . . . . . . . . . . . . . . . Distress Signals . | . . . . . . . . . . . . . . . . . . . . . . . . . . . . . . . . . . . . . . . . . . . . Times Spotted 632 | . 30 1 11 . . 6 27 22 1 15 14 . . 6 14 14 11 16 14 65 . 19 11 6 7 28 14 15 13 10 17 6 . 21 7 2 5 35 . . 21 50 78 Peak Tracking Total 9 | . 5 1 6 . . 3 8 9 1 6 5 . . 4 5 6 5 4 4 5 . 5 6 2 3 4 5 1 9 3 6 2 . 9 5 1 3 6 . . 4 8 7 Tactical Retreats 34 | . 1 . 1 . . . . . . 2 . . . . . 1 1 5 . 2 . . . . . 2 . . 1 4 1 1 . . . . . . . . 1 2 9 Traps | -11 -10 -10 -9 -9 -9 -8 -8 -8 -8 -8 -7 -7 -7 -7 -6 -6 -6 -6 -6 -6 -6 -5 -5 -5 -5 -5 -5 -5 -5 -5 -4 -4 -4 -4 -4 -4 -3 -3 -3 -2 -1 -1 -1 ------- Run | Scr Mat Min Mat Min Exi Min Mat Gar Mat Gar Fac Was Fac Gar Fac Gar Fac Low Low Zio Dee Pro Fac Was Fac Ext Cet Arc Hub Gar Fac Was Fac Gar Fac Gar Res Arm Lab Res Acc Com Ac0 Traps Triggered 45 | . . . 1 . . . . 3 . 4 2 . . 4 1 4 . . . . . . 2 . 1 4 . . . 2 1 . . 6 2 . . 4 . . 1 3 . Indirectly . | . . . . . . . . . . . . . . . . . . . . . . . . . . . . . . . . . . . . . . . . . . . . Trap Hack Attempts . | . . . . . . . . . . . . . . . . . . . . . . . . . . . . . . . . . . . . . . . . . . . . Triggered . | . . . . . . . . . . . . . . . . . . . . . . . . . . . . . . . . . . . . . . . . . . . . Disarmed . | . . . . . . . . . . . . . . . . . . . . . . . . . . . . . . . . . . . . . . . . . . . . Reprogrammed . | . . . . . . . . . . . . . . . . . . . . . . . . . . . . . . . . . . . . . . . . . . . . Reused 1 | . . . . . . . . . . . . . . . . . . . . . . 1 . . . . . . . . . . . . . . . . . . . . . Traps Extracted . | . . . . . . . . . . . . . . . . . . . . . . . . . . . . . . . . . . . . . . . . . . . . Installed 2 | . . 1 . . . . . . . . . . . . . . . . . . . 1 . . . . . . . . . . . . . . . . . . . . . Triggered 2 | . . . . . . . . . . . . . . . . . . . . . . 1 . . . . . . . . . . . . . . . . . . . 1 . Machines | -11 -10 -10 -9 -9 -9 -8 -8 -8 -8 -8 -7 -7 -7 -7 -6 -6 -6 -6 -6 -6 -6 -5 -5 -5 -5 -5 -5 -5 -5 -5 -4 -4 -4 -4 -4 -4 -3 -3 -3 -2 -1 -1 -1 ---------- Run | Scr Mat Min Mat Min Exi Min Mat Gar Mat Gar Fac Was Fac Gar Fac Gar Fac Low Low Zio Dee Pro Fac Was Fac Ext Cet Arc Hub Gar Fac Was Fac Gar Fac Gar Res Arm Lab Res Acc Com Ac0 Machines Disabled 97 | . 6 . . . . . 3 1 1 1 10 . . 1 14 1 2 . . 1 1 . 1 . . 2 . . 15 . 2 . . 1 . 3 . 10 2 . 3 4 12 Max in Single Turn 12 | . 3 . . . . . 1 1 1 1 6 . . 1 12 1 1 . . 1 1 . 1 . . 1 . . 10 . 1 . . 1 . 2 . 2 1 . 1 1 1 Garrison Access 5 | . . . . . . . . . . . 1 . . . . . . . . . . . . . . . . . 1 . 1 . . . . . 1 . . 1 . . . Garrison Relay 6 | . . . . . . . . 1 . 1 . . . 1 . 1 . . . . . . . . . . . . . . . . . 1 . 1 . . . . . . . Phase Generator 1 | . . . . . . . . . . . . . . . . . . . . . . . . . . . . . . . . . . . . 1 . . . . . . . Network Hub 2 | . . . . . . . . . . . . . . . . . . . . . . . . . . . . . 2 . . . . . . . . . . . . . . Machines Sabotaged . | . . . . . . . . . . . . . . . . . . . . . . . . . . . . . . . . . . . . . . . . . . . . Garrisons Compromised . | . . . . . . . . . . . . . . . . . . . . . . . . . . . . . . . . . . . . . . . . . . . . Overloaded Fab Kills . | . . . . . . . . . . . . . . . . . . . . . . . . . . . . . . . . . . . . . . . . . . . . Fab Network Shutdowns 1 | . . . . . . . . . . . . . . . . . . . . . . . . . . . . . . . . . . . . . . . . . 1 . . Hacking | -11 -10 -10 -9 -9 -9 -8 -8 -8 -8 -8 -7 -7 -7 -7 -6 -6 -6 -6 -6 -6 -6 -5 -5 -5 -5 -5 -5 -5 -5 -5 -4 -4 -4 -4 -4 -4 -3 -3 -3 -2 -1 -1 -1 --------- Run | Scr Mat Min Mat Min Exi Min Mat Gar Mat Gar Fac Was Fac Gar Fac Gar Fac Low Low Zio Dee Pro Fac Was Fac Ext Cet Arc Hub Gar Fac Was Fac Gar Fac Gar Res Arm Lab Res Acc Com Ac0 Machines Accessed 105 | . 6 1 3 . 2 . 13 . 1 . 4 . 2 . 2 . 2 2 . 1 . 1 10 . 2 12 . . 8 . 3 . 1 . 1 . 6 9 . 3 7 3 . Terminals 69 | . 3 . 3 . . . 10 . . . 3 . . . . . . . . . . 1 6 . 2 12 . . 6 . 2 . . . . . 4 6 . 2 6 3 . Fabricators 8 | . . . . . . . . . . . . . . . 1 . 1 . . . . . 1 . . . . . . . . . . . . . 1 3 . . 1 . . Repair Stations 3 | . 1 . . . . . . . . . . . 1 . . . . . . . . . 1 . . . . . . . . . . . . . . . . . . . . Recycling Units 4 | . 2 . . . . . . . . . . . . . . . 1 . . . . . 1 . . . . . . . . . . . . . . . . . . . . Scanalyzers 2 | . . . . . . . 2 . . . . . . . . . . . . . . . . . . . . . . . . . . . . . . . . . . . . Garrison Access 13 | . . . . . . . 1 . 1 . 1 . 1 . 1 . . . . . . . 1 . . . . . 2 . 1 . 1 . 1 . 1 . . 1 . . . Total Hacks 299 | . 15 1 5 . 2 . 50 . 2 . 11 . 4 . 3 . 3 2 . 4 . 1 21 . 9 27 . . 18 . 8 . 4 . 2 . 27 37 . 5 22 16 . Successful 163 | . 10 1 2 . 2 . 29 . 2 . 2 . 3 . 1 . . 2 . 4 . 1 10 . 3 13 . . 10 . 3 . 3 . 2 . 16 20 . 2 15 7 . Failed 135 | . 5 . 3 . . . 21 . . . 9 . 1 . 2 . 3 . . . . . 11 . 5 14 . . 8 . 5 . 1 . . . 11 17 . 3 7 9 . Catastrophic 17 | . . . . . . . 1 . . . 1 . . . 2 . 1 . . . . . 1 . 3 . . . 1 . 1 . . . . . 1 2 . 1 . 2 . Database Lockouts 1 | . . . . . . . . . . . . . . . . . . . . . . . . . 1 . . . . . . . . . . . . . . . . . . Manual 155 | . 7 . 2 . 1 . 37 . . . 4 . . . 2 . 2 . . 4 . . 11 . 7 8 1 . 10 . 4 . 2 . . . 11 17 . 4 12 9 . Terminals 221 | . 10 . 5 . . . 41 . . . 10 . . . . . . . . . . 1 14 . 9 27 . . 15 . 6 . . . . . 19 26 . 4 18 16 . Fabricators 25 | . . . . . . . . . . . . . . . 1 . 1 . . . . . 2 . . . . . . . . . . . . . 6 11 . . 4 . . Repair Stations 6 | . 2 . . . . . . . . . . . 3 . . . . . . . . . 1 . . . . . . . . . . . . . . . . . . . . Recycling Units 6 | . 3 . . . . . . . . . . . . . . . 2 . . . . . 1 . . . . . . . . . . . . . . . . . . . . Scanalyzers 7 | . . . . . . . 7 . . . . . . . . . . . . . . . . . . . . . . . . . . . . . . . . . . . . Garrison Access 25 | . . . . . . . 2 . 2 . 1 . 1 . 2 . . . . . . . 3 . . . . . 3 . 2 . 4 . 2 . 2 . . 1 . . . Terminal Hacks 85 | . 2 1 2 . 2 . 14 . . . 1 . . . . . . 2 . 4 . 1 2 . 3 10 . . 4 . 2 . . . . . 9 10 . 1 9 6 . Record 2 | . . . . . 1 . . . . . . . . . . . . . . . . 1 . . . . . . . . . . . . . . . . . . . . . Part Schematic 10 | . . . . . . . . . . . . . . . . . . . . 4 . . . . . . . . . . 1 . . . . . 2 1 . . 1 1 . Robot Schematic 1 | . . . . . . . 1 . . . . . . . . . . . . . . . . . . . . . . . . . . . . . . . . . . . . Prototype ID Bank 10 | . 1 . 1 . . . 2 . . . . . . . . . . . . . . . 1 . 2 1 . . . . . . . . . . . 1 . . . 1 . Open Door 11 | . . 1 . . . . . . . . . . . . . . . 2 . . . . . . . 4 . . . . . . . . . . . . . . 3 1 . Level Access Points 2 | . . . . . . . . . . . . . . . . . . . . . . . . . . . . . 1 . . . . . . . . . . . . 1 . Branch Access Points 9 | . 1 . 1 . . . . . . . 1 . . . . . . . . . . . 1 . 1 . . . . . 1 . . . . . 1 . . 1 1 . . Emergency Access Points 1 | . . . . . . . . . . . . . . . . . . . . . . . . . . . . . . . . . . . . . . 1 . . . . . Machine Index 3 | . . . . . . . . . . . . . . . . . . . . . . . . . . . . . . . . . . . . . 1 1 . . . 1 . Terminal Index 3 | . . . . . . . . . . . . . . . . . . . . . . . . . . 1 . . . . . . . . . . . 1 . . 1 . . Garrison Index 1 | . . . . . . . . . . . . . . . . . . . . . . . . . . . . . 1 . . . . . . . . . . . . . . Alert Level 3 | . . . . . . . 3 . . . . . . . . . . . . . . . . . . . . . . . . . . . . . . . . . . . . Unreport Threat 9 | . . . . . . . 3 . . . . . . . . . . . . . . . . . . 1 . . 1 . . . . . . . 1 1 . . 1 1 . Locate Traps 9 | . . . . . . . 1 . . . . . . . . . . . . . . . . . . 3 . . 1 . . . . . . . 1 2 . . 1 . . Patrol Status 2 | . . . . . . . . . . . . . . . . . . . . . . . . . . . . . . . . . . . . . 1 1 . . . . . Hauler Manifests 1 | . . . . . . . . . . . . . . . . . . . . . . . . . . . . . . . . . . . . . 1 . . . . . . Registered Components 2 | . . . . . . . . . . . . . . . . . . . . . . . . . . . . . . . . . . . . . 1 . . . 1 . . Registered Prototypes 1 | . . . . . . . . . . . . . . . . . . . . . . . . . . . . . . . . . . . . . . 1 . . . . . Zone Layout 4 | . . . . . . . 4 . . . . . . . . . . . . . . . . . . . . . . . . . . . . . . . . . . . . EX-Prototype ID Bank 1 | . . . . . 1 . . . . . . . . . . . . . . . . . . . . . . . . . . . . . . . . . . . . . . Fabricator Hacks 11 | . . . . . . . . . . . . . . . . . . . . . . . 1 . . . . . . . . . . . . . 3 4 . . 3 . . Load Schematic 4 | . . . . . . . . . . . . . . . . . . . . . . . . . . . . . . . . . . . . . 2 1 . . 1 . . Build 7 | . . . . . . . . . . . . . . . . . . . . . . . 1 . . . . . . . . . . . . . 1 3 . . 2 . . Repair Station Hacks 5 | . 2 . . . . . . . . . . . 2 . . . . . . . . . 1 . . . . . . . . . . . . . . . . . . . . Scan Component 2 | . 1 . . . . . . . . . . . 1 . . . . . . . . . . . . . . . . . . . . . . . . . . . . . . Repair 2 | . 1 . . . . . . . . . . . 1 . . . . . . . . . . . . . . . . . . . . . . . . . . . . . . Refit 1 | . . . . . . . . . . . . . . . . . . . . . . . 1 . . . . . . . . . . . . . . . . . . . . Recycling Unit Hacks 3 | . 2 . . . . . . . . . . . . . . . . . . . . . 1 . . . . . . . . . . . . . . . . . . . . Report Inventory 1 | . 1 . . . . . . . . . . . . . . . . . . . . . . . . . . . . . . . . . . . . . . . . . . Retrieve Components 2 | . 1 . . . . . . . . . . . . . . . . . . . . . 1 . . . . . . . . . . . . . . . . . . . . Scanalyzer 5 | . . . . . . . 5 . . . . . . . . . . . . . . . . . . . . . . . . . . . . . . . . . . . . Insert Component 3 | . . . . . . . 3 . . . . . . . . . . . . . . . . . . . . . . . . . . . . . . . . . . . . Analyze 2 | . . . . . . . 2 . . . . . . . . . . . . . . . . . . . . . . . . . . . . . . . . . . . . Garrison Access Hacks 18 | . . . . . . . 2 . 2 . 1 . 1 . 1 . . . . . . . 1 . . . . . 3 . . . 2 . 2 . 2 . . 1 . . . Unlock Access 7 | . . . . . . . 1 . 1 . . . 1 . 1 . . . . . . . . . . . . . 1 . . . 1 . 1 . . . . . . . . Seal Access 4 | . . . . . . . . . . . 1 . . . . . . . . . . . . . . . . . 1 . . . . . . . 1 . . 1 . . . Coupler Status 7 | . . . . . . . 1 . 1 . . . . . . . . . . . . . 1 . . . . . 1 . . . 1 . 1 . 1 . . . . . . Unauthorized Hacks 36 | . 4 . . . . . 8 . . . . . . . . . . . . . . . 4 . . 3 . . 3 . 1 . 1 . . . 2 6 . . 3 1 . Terminals 26 | . 3 . . . . . 8 . . . . . . . . . . . . . . . 2 . . 3 . . 3 . . . . . . . 2 2 . . 2 1 . Track 5 | . 2 . . . . . 1 . . . . . . . . . . . . . . . . . . 1 . . 1 . . . . . . . . . . . . . . Assimilate 2 | . . . . . . . . . . . . . . . . . . . . . . . . . . . . . . . . . . . . . 1 1 . . . . . Botnet 13 | . 1 . . . . . 2 . . . . . . . . . . . . . . . 2 . . 2 . . 2 . . . . . . . 1 1 . . 1 1 . Operators 2 | . . . . . . . 1 . . . . . . . . . . . . . . . . . . . . . . . . . . . . . . . . . 1 . . Search 4 | . . . . . . . 4 . . . . . . . . . . . . . . . . . . . . . . . . . . . . . . . . . . . . Fabricators 6 | . . . . . . . . . . . . . . . . . . . . . . . 1 . . . . . . . . . . . . . . 4 . . 1 . . Report 1 | . . . . . . . . . . . . . . . . . . . . . . . . . . . . . . . . . . . . . . 1 . . . . . Prioritize 4 | . . . . . . . . . . . . . . . . . . . . . . . 1 . . . . . . . . . . . . . . 2 . . 1 . . Siphon 1 | . . . . . . . . . . . . . . . . . . . . . . . . . . . . . . . . . . . . . . 1 . . . . . Repair Stations . | . . . . . . . . . . . . . . . . . . . . . . . . . . . . . . . . . . . . . . . . . . . . Recycling Units 1 | . 1 . . . . . . . . . . . . . . . . . . . . . . . . . . . . . . . . . . . . . . . . . . Tunnel 1 | . 1 . . . . . . . . . . . . . . . . . . . . . . . . . . . . . . . . . . . . . . . . . . Scanalyzers . | . . . . . . . . . . . . . . . . . . . . . . . . . . . . . . . . . . . . . . . . . . . . Garrison Access 3 | . . . . . . . . . . . . . . . . . . . . . . . 1 . . . . . . . 1 . 1 . . . . . . . . . . Reprogram 2 | . . . . . . . . . . . . . . . . . . . . . . . . . . . . . . . 1 . 1 . . . . . . . . . . Eject 1 | . . . . . . . . . . . . . . . . . . . . . . . 1 . . . . . . . . . . . . . . . . . . . . Data Cores Recovered . | . . . . . . . . . . . . . . . . . . . . . . . . . . . . . . . . . . . . . . . . . . . . Used . | . . . . . . . . . . . . . . . . . . . . . . . . . . . . . . . . . . . . . . . . . . . . Hacking Detections 77 | . 5 . 3 . . . 13 . . . 3 . 2 . 2 . 2 . . . . . 8 . 2 9 . . 6 . 2 . . . 1 . 4 8 . 2 3 2 . Full Trace Events 10 | . 1 . . . . . 1 . . . 1 . . . . . 1 . . . . . 1 . 1 1 . . 2 . . . . . . . 1 . . . . . . Feedback Events 1 | . 1 . . . . . . . . . . . . . . . . . . . . . . . . . . . . . . . . . . . . . . . . . . Corruption 1 | . 1 . . . . . . . . . . . . . . . . . . . . . . . . . . . . . . . . . . . . . . . . . . Feedback Blocked . | . . . . . . . . . . . . . . . . . . . . . . . . . . . . . . . . . . . . . . . . . . . . Robot Schematics Acquired 1 | . . . . . . . 1 . . . . . . . . . . . . . . . . . . . . . . . . . . . . . . . . . . . . Robots Built . | . . . . . . . . . . . . . . . . . . . . . . . . . . . . . . . . . . . . . . . . . . . . Matter . | . . . . . . . . . . . . . . . . . . . . . . . . . . . . . . . . . . . . . . . . . . . . Time . | . . . . . . . . . . . . . . . . . . . . . . . . . . . . . . . . . . . . . . . . . . . . Total Robot Build Rating . | . . . . . . . . . . . . . . . . . . . . . . . . . . . . . . . . . . . . . . . . . . . . Part Schematics Acquired 12 | . . . . . . . 2 . . . . . . . . . . . . 4 . . . . . . . . . . 1 . . . . . 2 1 . . 1 1 . Parts Built 8 | . . . . . . . . . . . . . . . . . . . . . . . 1 . . . . . . . . . . . . . 1 5 . . 1 . . Matter 1785 | . . . . . . . . . . . . . . . . . . . . . . . 256 . . . . . . . . . . . . . 318 794 . . 417 . . Time 496 | . . . . . . . . . . . . . . . . . . . . . . . 128 . . . . . . . . . . . . . 56 238 . . 74 . . Total Part Build Rating 65 | . . . . . . . . . . . . . . . . . . . . . . . 8 . . . . . . . . . . . . . 6 42 . . 9 . . Parts Repaired 2 | . 1 . . . . . . . . . . . 1 . . . . . . . . . . . . . . . . . . . . . . . . . . . . . . Time 64 | . 26 . . . . . . . . . . . 38 . . . . . . . . . . . . . . . . . . . . . . . . . . . . . . Parts Recycled . | . . . . . . . . . . . . . . . . . . . . . . . . . . . . . . . . . . . . . . . . . . . . Recycled Matter . | . . . . . . . . . . . . . . . . . . . . . . . . . . . . . . . . . . . . . . . . . . . . Retrieved Matter . | . . . . . . . . . . . . . . . . . . . . . . . . . . . . . . . . . . . . . . . . . . . . Retrieved Components 7 | . 6 . . . . . . . . . . . . . . . . . . . . . 1 . . . . . . . . . . . . . . . . . . . . Parts Scanalyzed 2 | . . . . . . . 2 . . . . . . . . . . . . . . . . . . . . . . . . . . . . . . . . . . . . Part Schematics Acquired 2 | . . . . . . . 2 . . . . . . . . . . . . . . . . . . . . . . . . . . . . . . . . . . . . Parts Damaged 1 | . . . . . . . 1 . . . . . . . . . . . . . . . . . . . . . . . . . . . . . . . . . . . . Bothacking | -11 -10 -10 -9 -9 -9 -8 -8 -8 -8 -8 -7 -7 -7 -7 -6 -6 -6 -6 -6 -6 -6 -5 -5 -5 -5 -5 -5 -5 -5 -5 -4 -4 -4 -4 -4 -4 -3 -3 -3 -2 -1 -1 -1 ------------ Run | Scr Mat Min Mat Min Exi Min Mat Gar Mat Gar Fac Was Fac Gar Fac Gar Fac Low Low Zio Dee Pro Fac Was Fac Ext Cet Arc Hub Gar Fac Was Fac Gar Fac Gar Res Arm Lab Res Acc Com Ac0 Used RIF Installer 7 | . . . . . . . . 1 . 1 . . . 1 . 1 . . . . . . . . . . . . . 1 . . . 1 . 1 . . . . . . . Coupler Efficiency 1 | . . . . . . . . . . . . . . . . 1 . . . . . . . . . . . . . . . . . . . . . . . . . . . Threat Obfuscator 1 | . . . . . . . . . . . . . . . . . . . . . . . . . . . . . . . . . . 1 . . . . . . . . . Signal Jammer 1 | . . . . . . . . . . . . . . 1 . . . . . . . . . . . . . . . . . . . . . . . . . . . . . Robot Detection 1 | . . . . . . . . . . . . . . . . . . . . . . . . . . . . . . . . . . . . 1 . . . . . . . Program Shield 1 | . . . . . . . . . . 1 . . . . . . . . . . . . . . . . . . . . . . . . . . . . . . . . . Autoassimilate 1 | . . . . . . . . . . . . . . . . . . . . . . . . . . . . . . 1 . . . . . . . . . . . . . Robots Hacked 15 | . . . . . . . . . . . . . . . . . . . . . . . 1 5 . . . . . . 1 . . . . . . . . . . 8 . Non-combat 2 | . . . . . . . . . . . . . . . . . . . . . . . 1 . . . . . . . 1 . . . . . . . . . . . . Combat 13 | . . . . . . . . . . . . . . . . . . . . . . . . 5 . . . . . . . . . . . . . . . . . 8 . Autoassimilated 3 | . . . . . . . . . . . . . . . . . . . . . . . . . . . . . . . . . . . . . . . . . . 3 . Robot Hacks Applied 12 | . . . . . . . . . . . . . . . . . . . . . . . 1 5 . . . . . . 1 . . . . . . . . . . 5 . find_chute 2 | . . . . . . . . . . . . . . . . . . . . . . . 1 . . . . . . . 1 . . . . . . . . . . . . ignore_targets 5 | . . . . . . . . . . . . . . . . . . . . . . . . 5 . . . . . . . . . . . . . . . . . . . streamctrl_high 1 | . . . . . . . . . . . . . . . . . . . . . . . . . . . . . . . . . . . . . . . . . . 1 . formatsys_high 4 | . . . . . . . . . . . . . . . . . . . . . . . . . . . . . . . . . . . . . . . . . . 4 . Relay Couplers Released 34 | . . . . . . . . 3 . 5 . . . 4 . 5 . . . . . . 4 . . . . . 1 . 3 . . 3 . 3 3 . . . . . . Ejected 4 | . . . . . . . . . . . . . . . . . . . . . . . 4 . . . . . . . . . . . . . . . . . . . . Machine Destruction 27 | . . . . . . . . 3 . 5 . . . 4 . 5 . . . . . . . . . . . . 1 . 3 . . 3 . 3 . . . . . . . Programmers 3 | . . . . . . . . . . . . . . . . . . . . . . . . . . . . . . . . . . . . . 3 . . . . . . Attached 4 | . . . . . . . . . . . . . . . . . . . . . . . . 1 . . . . . . . . . . . . . . . . . 3 . Robots Rewired 16 | . . . . . . . . . . . . . . . . . . . . . . . . . . 10 . . . . . . . . . . . 4 . . 1 1 . Allies Hacked . | . . . . . . . . . . . . . . . . . . . . . . . . . . . . . . . . . . . . . . . . . . . . Hacks Repelled 2 | . . . . . . . . . . . . . . . . . . . . . . . . . . . . . . . . . . . . . . . . . . 2 . Allies | -11 -10 -10 -9 -9 -9 -8 -8 -8 -8 -8 -7 -7 -7 -7 -6 -6 -6 -6 -6 -6 -6 -5 -5 -5 -5 -5 -5 -5 -5 -5 -4 -4 -4 -4 -4 -4 -3 -3 -3 -2 -1 -1 -1 -------- Run | Scr Mat Min Mat Min Exi Min Mat Gar Mat Gar Fac Was Fac Gar Fac Gar Fac Low Low Zio Dee Pro Fac Was Fac Ext Cet Arc Hub Gar Fac Was Fac Gar Fac Gar Res Arm Lab Res Acc Com Ac0 Total Allies 61 | . . 3 . . . . . . . . . 20 . . . . . . . 1 . . . . . 16 5 . . . . . . . . . 1 5 . . 1 9 . Largest Group 20 | . . 3 3 3 3 3 . . . . . 20 17 12 . . . . . 1 1 . . . . 11 11 . . . . . . . . . 1 4 . . 1 4 . Highest-Rated Group 509 | . . 40 40 40 40 40 . . . . . 509 406 281 . . . . . 99 99 . . . . 433 470 . . . . . . . . . 44 188 . . 44 334 . Highest-Rated Ally 156 | . . 16 16 16 16 16 . . . . . 35 35 31 . . . . . 99 99 . . . . 156 156 . . . . . . . . . 44 47 . . 44 90 . Total Orders 37 | . . 2 . . . 1 . . . . . . . . . . . . . . . . . . . . 6 . . . . . . . . . . 2 . . 5 15 6 STAY 15 | . . 1 . . . . . . . . . . . . . . . . . . . . . . . . 4 . . . . . . . . . . 1 . . 3 6 . ROAM 5 | . . . . . . 1 . . . . . . . . . . . . . . . . . . . . 1 . . . . . . . . . . 1 . . . 2 . FOLLOW 11 | . . 1 . . . . . . . . . . . . . . . . . . . . . . . . 1 . . . . . . . . . . . . . 2 7 . EXPLORE 5 | . . . . . . . . . . . . . . . . . . . . . . . . . . . . . . . . . . . . . . . . . . . 5 RETURN 1 | . . . . . . . . . . . . . . . . . . . . . . . . . . . . . . . . . . . . . . . . . . . 1 Ally Attacks 576 | . . . 50 . . 11 . . . . . . . 119 . . . . . 75 . 24 . . . 46 74 . . . . . . . . . . 17 . . . 160 . Total Damage 11856 | . . . 509 . . 137 . . . . . . . 1728 . . . . . 2801 . 1083 . . . 1002 2096 . . . . . . . . . . 469 . . . 2031 . Kills 117 | . . . 12 . . 1 . . . . . . . 14 . . . . . 51 . 5 . . . 8 12 . . . . . . . . . . 2 . . . 12 . Allies Corrupted 2 | . . . . . . . . . . . . . . . . . . . . . 1 . . . . . . . . . . . . . . . . . . . . 1 . Allies Melted . | . . . . . . . . . . . . . . . . . . . . . . . . . . . . . . . . . . . . . . . . . . . . Turrets Deployed 2 | . . . . . . . . . . . . . . . . . . . . . . 2 . . . . . . . . . . . . . . . . . . . . . Intel | -11 -10 -10 -9 -9 -9 -8 -8 -8 -8 -8 -7 -7 -7 -7 -6 -6 -6 -6 -6 -6 -6 -5 -5 -5 -5 -5 -5 -5 -5 -5 -4 -4 -4 -4 -4 -4 -3 -3 -3 -2 -1 -1 -1 ------- Run | Scr Mat Min Mat Min Exi Min Mat Gar Mat Gar Fac Was Fac Gar Fac Gar Fac Low Low Zio Dee Pro Fac Was Fac Ext Cet Arc Hub Gar Fac Was Fac Gar Fac Gar Res Arm Lab Res Acc Com Ac0 Robot Analysis Total . | . . . . . . . . . . . . . . . . . . . . . . . . . . . . . . . . . . . . . . . . . . . . Derelict Logs Recovered 7 | . . 1 . . . . . . . . . . . . . . . 2 . 2 . 2 . . . . . . . . . . . . . . . . . . . . . Drone Launches 4 | . . . . . . . . . . . . . . . . . . . . . . . . . . . . . . . . . . . . . . . . . . . 4 Drone Recoveries 2 | . . . . . . . . . . . . . . . . . . . . . . . . . . . . . . . . . . . . . . . . . . . 2 Exploration | -11 -10 -10 -9 -9 -9 -8 -8 -8 -8 -8 -7 -7 -7 -7 -6 -6 -6 -6 -6 -6 -6 -5 -5 -5 -5 -5 -5 -5 -5 -5 -4 -4 -4 -4 -4 -4 -3 -3 -3 -2 -1 -1 -1 ------------- Run | Scr Mat Min Mat Min Exi Min Mat Gar Mat Gar Fac Was Fac Gar Fac Gar Fac Low Low Zio Dee Pro Fac Was Fac Ext Cet Arc Hub Gar Fac Was Fac Gar Fac Gar Res Arm Lab Res Acc Com Ac0 Turns Passed 92728 | 408 1155 655 627 74 744 58 1700 659 172 598 653 634 169 680 852 1231 549 3595 2805 43643 1407 2168 877 452 669 1654 570 567 750 678 397 664 28 1123 327 287 804 1953 715 191 1558 8289 4939 Spaces Moved 23234 | 201 408 327 274 43 371 15 687 274 45 187 245 316 56 329 348 370 184 1298 1166 3176 574 880 510 184 332 723 203 176 339 281 133 183 10 514 119 128 426 761 278 113 690 2289 3068 Core 2237 | 4 . . . . . . . . . . . . . . . . . . 6 2216 . . . . . . . . . . . . . . . . . . . . . . 11 Treads 15777 | 197 390 44 274 43 371 15 687 274 45 187 245 316 56 329 348 330 103 1298 204 357 574 864 . 146 332 723 203 176 339 281 133 183 10 514 119 128 426 761 278 113 690 2289 382 Legs 3586 | . . . . . . . . . . . . . . . . 40 81 . 956 603 . . . . . . . . . . . . . . . . . . . . . . 1906 Wheels 865 | . 18 283 . . . . . . . . . . . . . . . . . . . 16 510 38 . . . . . . . . . . . . . . . . . . . Hover 769 | . . . . . . . . . . . . . . . . . . . . . . . . . . . . . . . . . . . . . . . . . . . 769 Flight . | . . . . . . . . . . . . . . . . . . . . . . . . . . . . . . . . . . . . . . . . . . . . Fastest Speed 16 | 50 80 90 165 165 165 205 181 181 183 183 180 180 185 185 185 185 225 225 50 180 186 130 130 140 180 180 180 160 160 180 180 180 180 180 180 180 180 177 165 165 165 165 16 Average Speed 337 | 157 156 100 165 165 195 205 184 186 183 183 182 183 185 185 185 291 242 236 219 1354 193 190 134 171 180 180 180 177 170 180 180 180 180 180 180 180 180 183 165 165 165 187 111 Slowest Speed 2100 | 160 160 165 165 165 205 205 210 190 183 205 183 185 185 185 185 310 245 320 2100 1900 240 193 140 180 180 180 180 180 180 180 180 180 180 180 180 180 185 230 165 165 165 220 850 Overloaded Moves 143 | . . . . . . . . . . . . . . . . . . . . . . . . . . . . . . . . . . . . . . . . . . . 143 Propulsion Burnouts . | . . . . . . . . . . . . . . . . . . . . . . . . . . . . . . . . . . . . . . . . . . . . Robots Hopped 1 | . . . . . . . . . . . . . . . . . . . . . . . . . . . 1 . . . . . . . . . . . . . . . . Cave-ins Triggered 1 | . . . . . . . . . . . . . . . . . . . . . . . . . . . . . . . . . . . . . . . . . . . 1 Teleports 2 | . . . . . . . . . . . . . . . . . . . . . . . . . . . . . . . . . . . . . . . . . . 1 1 Exploration Rate (%) 45 | 9 51 53 37 15 69 9 73 57 7 44 9 92 2 62 11 58 4 92 89 60 65 80 18 77 15 80 59 78 43 52 6 91 1 64 5 30 16 62 90 5 15 52 88 Regions Visited 43 Branch Regions 17 Pre-discovered Areas 3 | . 1 . . . 1 . . . . . . . . . . . . 1 . . . . . . . . . . . . . . . . . . . . . . . . . Known Exits Taken 12 | . 1 . 1 . . . 1 . 1 . . . 1 . 1 . . . . . . . . . 1 . . . 1 . . . 1 . 1 . 1 . . . 1 . . Unknown Exits Taken 18 | 1 . 1 . 1 1 1 . . . . . . . . . . 1 1 1 1 1 1 . . . 1 1 1 . . . . . . . . . 1 1 1 . 1 . Scrap Searched 8 | . . . . . . . . . . . . . . . . . . 3 1 1 . 3 . . . . . . . . . . . . . . . . . . . . . Spaces Dug 167 | . . . . . . . 14 6 . . . . . . . . . 1 1 . 8 . 5 . 20 . . . 23 . . 9 . . . 14 . 17 . . 17 . 32 Terrain Destroyed 1788 | 17 53 . . . . . 16 38 . . 32 . . . 34 10 10 42 6 2 18 . 23 . 20 . . . 190 . 25 24 . 1 . 89 26 191 . . 130 59 732 Melee 3 | . . . . . . . 1 . . . . . . . . . . 1 1 . . . . . . . . . . . . . . . . . . . . . . . . Projectile 374 | . . . . . . . 2 7 . . 1 . . . . 10 2 1 5 2 18 . 9 . . . . . 42 . 25 24 . 1 . 2 . 6 . . 16 10 191 AOE 1411 | 17 53 . . . . . 13 31 . . 31 . . . 34 . 8 40 . . . . 14 . 20 . . . 148 . . . . . . 87 26 185 . . 114 49 541 Terrain Rammed . | . . . . . . . . . . . . . . . . . . . . . . . . . . . . . . . . . . . . . . . . . . . . Walls Destroyed . | . . . . . . . . . . . . . . . . . . . . . . . . . . . . . . . . . . . . . . . . . . . . Machines Disabled . | . . . . . . . . . . . . . . . . . . . . . . . . . . . . . . . . . . . . . . . . . . . . Actions | -11 -10 -10 -9 -9 -9 -8 -8 -8 -8 -8 -7 -7 -7 -7 -6 -6 -6 -6 -6 -6 -6 -5 -5 -5 -5 -5 -5 -5 -5 -5 -4 -4 -4 -4 -4 -4 -3 -3 -3 -2 -1 -1 -1 --------- Run | Scr Mat Min Mat Min Exi Min Mat Gar Mat Gar Fac Was Fac Gar Fac Gar Fac Low Low Zio Dee Pro Fac Was Fac Ext Cet Arc Hub Gar Fac Was Fac Gar Fac Gar Res Arm Lab Res Acc Com Ac0 Total 34588 | 253 820 649 444 46 389 23 971 345 129 355 399 367 121 388 483 476 255 1707 1312 3689 762 1215 621 251 372 950 318 361 432 387 218 462 20 649 228 175 460 1174 528 116 1025 6018 4225 Wait 7357 | 6 283 304 129 4 . . 170 13 80 103 96 13 63 39 44 56 40 242 10 408 70 202 4 . 12 101 33 121 29 71 15 247 . 76 102 20 1 217 215 . 222 3137 359 Move 23198 | 200 407 326 273 42 370 14 687 273 45 186 245 315 56 328 347 369 183 1297 1165 3175 573 879 510 183 331 722 200 175 339 280 133 182 10 514 119 127 425 760 277 112 689 2288 3067 Hop 1 | . . . . . . . . . . . . . . . . . . . . . . . . . . . 1 . . . . . . . . . . . . . . . . Pick Up 368 | 7 12 3 12 . 13 . 12 5 2 6 9 7 . 1 14 6 5 18 25 9 5 8 20 5 4 4 5 7 3 . 1 1 4 2 . 2 8 16 10 . 3 43 51 Fast Attach 245 | 7 7 2 6 . 2 . 5 1 . 6 3 5 1 1 7 5 1 14 17 10 5 2 9 5 . . 5 . . 1 . . . 2 4 . 2 7 2 1 6 35 59 Attach 244 | . 2 . 1 . . . 3 8 . 3 7 4 . . 5 3 1 14 8 5 2 10 5 2 1 1 3 3 2 . 5 . 2 3 . 2 8 6 4 1 7 52 61 Detach 131 | . 3 . 1 . . . 2 . . . 1 . . . 3 1 1 1 4 4 . 1 2 1 1 . 1 . 2 . 2 . . 1 1 . 4 8 2 . 5 40 39 Swap 327 | 1 22 4 3 . 1 . 12 2 . 1 1 3 . 2 4 5 6 6 . 9 7 7 9 4 4 5 4 7 14 2 7 1 2 1 . 3 4 32 . 2 27 50 53 Drop 416 | 4 14 6 13 . 3 . 13 2 . 6 9 15 1 3 14 3 3 24 6 14 11 13 18 11 2 3 8 7 2 1 . . 2 2 . 5 5 21 8 . 5 63 76 Fire 1898 | 15 60 3 2 . . 9 57 37 2 41 25 . . 6 39 22 15 41 71 54 29 83 40 40 11 50 54 36 36 28 47 31 . 38 . 16 2 89 10 . 58 265 436 Melee 38 | . . . . . . . 1 . . . 1 5 . . . . . 11 6 1 . . . . . . . . . . . . . . . . . . . . . . 13 Ram . | . . . . . . . . . . . . . . . . . . . . . . . . . . . . . . . . . . . . . . . . . . . . Kick 11 | . . . . . . . . . . . . . . . . . . . . . . . . . . . . . . . . . . . . . . . . . . . 11 Crush 237 | 13 10 . 4 . . . 9 . . 1 2 . . . 6 . . 39 . . 60 7 4 . 6 3 4 5 5 . 8 . . . 2 . 1 . . . 3 45 . Escape Stasis 42 | . . . . . . . . 4 . 2 . . . 8 . 6 . . . . . . . . . 8 . . . 4 . . . 10 . . . . . . . . . Rewire 73 | . . . . . . . . . . . . . . . . . . . . . . 2 . . . 53 . . . . . . . . . . . 18 . . . . . Trap 2 | . . 1 . . . . . . . . . . . . . . . . . . . 1 . . . . . . . . . . . . . . . . . . . . . Miscellaneous . | . . . . . . . . . . . . . . . . . . . . . . . . . . . . . . . . . . . . . . . . . . . . Route ------- -11/Scrapyard -10/Materials -10/Mines -9/Materials (discovered 3 exits: *Mat / *Min x2) -9/Mines (discovered 2 exits: *Mat / *Exi) -9/Exiles -8/Mines -8/Materials (discovered 5 exits: *Fac x3 / Sto / Gar) -8/Garrison (discovered 2 exits: *Mat x2) -8/Materials -8/Garrison -7/Factory (discovered 2 exits: Low x2) -7/Waste -7/Factory -7/Garrison (discovered 3 exits: *Fac x3) -6/Factory (discovered 2 exits: *Fac / Gar) -6/Garrison (discovered 3 exits: *Fac x3) -6/Factory -6/Lower Caves -6/Lower Caves (discovered 2 exits: *Fac / *Zio) -6/Zion (discovered 2 exits: [*Dee] / [*Pro]) -6/Deep Caves -5/Proximity Caves -5/Factory (discovered 5 exits: *Fac / Upp x2 / Ext x2) -5/Waste -5/Factory (discovered 5 exits: *Fac / Upp x2 / *Ext x2) -5/Extension (discovered 2 exits: *Fac / *Cet) -5/Cetus -5/Archives (discovered 3 exits: *Fac / *Hub x2) -5/Hub_04(d) (discovered 5 exits: Fac x4 / Gar) -5/Garrison -4/Factory (discovered 2 exits: Upp x2) -4/Waste -4/Factory -4/Garrison (discovered 3 exits: *Fac x3) -4/Factory -4/Garrison -3/Research (discovered 4 exits: *Res / *Arm / Tes x2) -3/Armory (discovered 2 exits: Res / [*Lab]) -3/Lab -2/Research (discovered 3 exits: *Acc / Qua x2) -1/Access -1/Command -1/Access_0 To Fleet Rendezvous History --------- Turn | Location | Event 5 | -11/Scrapyard | Discovered new exit (range 16) 409 | -11/Scrapyard | Entered Materials 410 | -10/Materials | Build established: Mutant 949 | -10/Materials | Identified exit to Mines 1341 | -10/Materials | Repaired Lgt. Treads 1564 | -10/Materials | Entered Mines 1585 | -10/Mines | Met a Derelict bent on vengeance 1590 | -10/Mines | Found a hidden stash of uninstalled traps 1671 | -10/Mines | Assisted by bots powering up and referring to "LRC-V3" 1871 | -10/Mines | Met a Derelict who couldn't figure out how to use a Trap Extractor 2176 | -10/Mines | Discovered new exit (range 7) 2219 | -10/Mines | Entered Materials 2219 | -9/Materials | Accompanied by 3 allies 2219 | -9/Materials | Evolved 2 slots: Utility x1, Weapon x1 2522 | -9/Materials | Build established: Skirmisher 2543 | -9/Materials | Discovered new exit (range 8) 2682 | -9/Materials | Identified exit to Mines 2846 | -9/Materials | Entered Mines 2846 | -9/Mines | Accompanied by 3 allies 2865 | -9/Mines | Discovered new exit (range 13) 2906 | -9/Mines | Deemed a non-threat by the Exiles lab entrance 2908 | -9/Mines | Discovered new exit (range 5) 2920 | -9/Mines | Entered Exiles 2920 | -9/Exiles | Accompanied by 3 allies 2931 | -9/Exiles | Build established: Tank 2965 | -9/Exiles | Met 8R-AWN 2986 | -9/Exiles | Met EX-HEX 3146 | -9/Exiles | Met EX-DEC 3181 | -9/Exiles | Learned location of Zion (-6) 3356 | -9/Exiles | Met EX-BIN 3382 | -9/Exiles | Aligned with FarCom system 3384 | -9/Exiles | Given EX-Vault access code 3435 | -9/Exiles | Opened EX-Vault 3450 | -9/Exiles | Found Deploy-a-Sentry 3453 | -9/Exiles | Found Deploy-a-Sentry 3456 | -9/Exiles | Found Deploy-a-Sentry 3496 | -9/Exiles | Warned to stay clear of 0b10 Research branches 3564 | -9/Exiles | Build established: Hauler-Tank 3631 | -9/Exiles | Discovered new exit (range 14) 3664 | -9/Exiles | Left Exiles lab with Deploy-a-Sentry 3664 | -9/Exiles | Entered Mines 3664 | -8/Mines | Accompanied by 3 allies 3694 | -8/Mines | Discovered new exit (range 14) 3722 | -8/Mines | Entered Materials 3722 | -8/Materials | Evolved 2 slots: Propulsion x1, Weapon x1 3723 | -8/Materials | Identified exit to Storage 3972 | -8/Materials | Build established: Hauler-Skirmisher 4309 | -8/Materials | Discovered new exit (range 15) 4629 | -8/Materials | Discovered new exit (range 15) 5296 | -8/Materials | Garrison activated, responded to threat 5402 | -8/Materials | Discovered new exit (range 3) 5422 | -8/Materials | Identified exit to Garrison 5422 | -8/Materials | Entered Garrison 5471 | -8/Garrison | Spotted B-75 Beast 5510 | -8/Garrison | Destroyed 7 combat bots 5522 | -8/Garrison | Destroyed B-75 Beast 5539 | -8/Garrison | Lost 6 parts (1p1n4w) 5562 | -8/Garrison | Triggered checkpoint 5611 | -8/Garrison | Garrison Relay disabled 5686 | -8/Garrison | Triggered checkpoint 5688 | -8/Garrison | Triggered checkpoint 5809 | -8/Garrison | Discovered new exit (range 15) 5936 | -8/Garrison | Triggered checkpoint 5938 | -8/Garrison | Triggered checkpoint 5993 | -8/Garrison | Destroyed 8 combat bots 6047 | -8/Garrison | Discovered new exit (range 8) 6074 | -8/Garrison | Installed Relay Interface Framework 6081 | -8/Garrison | Entered Materials 6253 | -8/Materials | Identified exit to Garrison 6253 | -8/Materials | Entered Garrison 6276 | -8/Garrison | Spotted B-75 Beast 6308 | -8/Garrison | Triggered checkpoint 6330 | -8/Garrison | Lost 3 parts (3w) 6362 | -8/Garrison | Destroyed B-75 Beast 6433 | -8/Garrison | Garrison Relay disabled 6632 | -8/Garrison | Triggered checkpoint 6683 | -8/Garrison | Build established: Scavenger-Skirmisher 6822 | -8/Garrison | Discovered new exit (range 8) 6844 | -8/Garrison | Expanded RIF knowledge: Program Shield 6851 | -8/Garrison | Entered Factory 6851 | -7/Factory | Evolved 2 slots: Utility x2 7109 | -7/Factory | Identified exit to Lower Caves 7135 | -7/Factory | Build established: Scavenger-Tank 7504 | -7/Factory | Sucked down chute 7504 | -7/Factory | Entered Waste 7505 | -7/Waste | Joined by Warlord forces that had cleared the area 7802 | -7/Waste | Discovered new exit (range 12) 7972 | -7/Waste | Build established: Hauler-Tank 7989 | -7/Waste | Found Damper Plating 8138 | -7/Waste | Entered Factory 8138 | -7/Factory | Accompanied by 17 allies 8232 | -7/Factory | Repaired Imp. Utility Shielding 8307 | -7/Factory | Identified exit to Garrison 8307 | -7/Factory | Entered Garrison 8307 | -7/Garrison | Accompanied by 12 allies 8388 | -7/Garrison | Triggered checkpoint 8390 | -7/Garrison | Triggered checkpoint 8468 | -7/Garrison | Triggered checkpoint 8524 | -7/Garrison | Discovered new exit (range 10) 8656 | -7/Garrison | Triggered checkpoint 8674 | -7/Garrison | Discovered new exit (range 10) 8746 | -7/Garrison | Garrison Relay disabled 8938 | -7/Garrison | Discovered new exit (range 15) 8979 | -7/Garrison | Expanded RIF knowledge: Signal Jamming 8987 | -7/Garrison | Entered Factory 8987 | -6/Factory | Evolved 2 slots: Utility x2 9322 | -6/Factory | Discovered new exit (range 11) 9681 | -6/Factory | Spotted B-75 Beast 9701 | -6/Factory | Destroyed B-75 Beast 9774 | -6/Factory | Garrison activated, responded to threat 9833 | -6/Factory | Identified exit to Garrison 9839 | -6/Factory | Entered Garrison 9961 | -6/Garrison | Lost 4 parts (1p1n1u1w) 9990 | -6/Garrison | Triggered checkpoint 10176 | -6/Garrison | Discovered new exit (range 10) 10332 | -6/Garrison | Triggered checkpoint 10358 | -6/Garrison | Build established: Scavenger-Gunner 10433 | -6/Garrison | Discovered new exit (range 15) 10560 | -6/Garrison | Spotted B-75 Beast 10560 | -6/Garrison | Spotted B-75 Beast 10638 | -6/Garrison | Triggered checkpoint 10737 | -6/Garrison | Discovered new exit (range 11) 10799 | -6/Garrison | Expanded RIF knowledge: Coupler Efficiency 10874 | -6/Garrison | Triggered checkpoint 10966 | -6/Garrison | Garrison Relay disabled 11070 | -6/Garrison | Entered Factory 11274 | -6/Factory | Discovered new exit (range 12) 11282 | -6/Factory | Build established: Bothacker-Gunner 11420 | -6/Factory | First assault squad dispatched 11604 | -6/Factory | Build established: Bothacker-Skirmisher 11619 | -6/Factory | Entered Lower Caves 11906 | -6/Lower Caves | Build established: Bothacker-Tank 12076 | -6/Lower Caves | Found Alien Artifact 12076 | -6/Lower Caves | Identified Core Expander 12076 | -6/Lower Caves | Installed Core Expander, added new Utility slot 12313 | -6/Lower Caves | Found Prototype Device 12313 | -6/Lower Caves | Identified Heart of Steel 12376 | -6/Lower Caves | Build established: Bothacker-Mutant 13253 | -6/Lower Caves | Spotted B-75 Beast 13837 | -6/Lower Caves | Learned Factory emergency access door positions 13987 | -6/Lower Caves | Destroyed B-75 Beast 14008 | -6/Lower Caves | Lost 7 parts (1p2n1u3w) 14354 | -6/Lower Caves | Build established: Hauler-Tank 14396 | -6/Lower Caves | Lost 3 parts (2u1w) 14671 | -6/Lower Caves | Build established: Scavenger-Mutant 14874 | -6/Lower Caves | Discovered new exit (range 4) 15210 | -6/Lower Caves | Build established: Hauler-Mutant 15214 | -6/Lower Caves | Entered another Lower Caves area 15220 | -6/Lower Caves | Adv. Beam Cannon stolen by Master Thief 15399 | -6/Lower Caves | Lost 7 parts (1p3n3u) 15412 | -6/Lower Caves | Core integrity fell below 50% 15477 | -6/Lower Caves | Released all parts (8) 15587 | -6/Lower Caves | Discovered new exit (range 15) 16860 | -6/Lower Caves | Build established: Scavenger-Mutant 16861 | -6/Lower Caves | Discovered new exit (range 6) 16945 | -6/Lower Caves | Ambushed by wild Derelicts 17587 | -6/Lower Caves | Build established: Scavenger-Gunner 17801 | -6/Lower Caves | Encountered a Warlord checkpoint 18019 | -6/Lower Caves | Entered Zion 18151 | -6/Zion | Discovered new exit (range 8) 60196 | -6/Zion | RIF detected upon attempting to enter Zion 60196 | -6/Zion | Attacked by Zionites 60210 | -6/Zion | Heart of Steel transformed into Warbot 60473 | -6/Zion | Extracted access codes from Imprinter's data core 60636 | -6/Zion | Spotted DD-E5Q(B) 60653 | -6/Zion | Allies destroyed DD-E5Q(B) 61004 | -6/Zion | Build established: Scavenger-Tank 61374 | -6/Zion | Learned Factory machine intel 61493 | -6/Zion | Found Relay Coupler [Programmer] 61497 | -6/Zion | Found Relay Coupler [Programmer] 61503 | -6/Zion | Found Relay Coupler [Programmer] 61507 | -6/Zion | Found Relay Coupler [Programmer] 61614 | -6/Zion | Opened final containment barrier to the Deep Caves 61642 | -6/Zion | Discovered new exit (range 3) 61642 | -6/Zion | Saw the warning signs outside the Deep Caves entrance 61662 | -6/Zion | Entered Deep Caves 61662 | -6/Deep Caves | Accompanied by 1 ally (Warbot) 61766 | -6/Deep Caves | Found Surveybot 24 Scanner 61769 | -6/Deep Caves | Found Surveybot 24 Chip 62490 | -6/Deep Caves | Z-Facility disabled 62865 | -6/Deep Caves | Discovered new exit (range 7) 63069 | -6/Deep Caves | Entered Proximity Caves 63105 | -5/Proximity Caves | Attracted the attention of an 0b10 checkpoint 63403 | -5/Proximity Caves | Build established: Scavenger-Mutant 63715 | -5/Proximity Caves | Build established: Scavenger-Tank 64419 | -5/Proximity Caves | Learned Factory terminal intel 64484 | -5/Proximity Caves | Spotted B-75 Beast 64534 | -5/Proximity Caves | Destroyed B-75 Beast 64734 | -5/Proximity Caves | DAS Turret deployed 64789 | -5/Proximity Caves | DAS Turret deployed 64996 | -5/Proximity Caves | Discovered new exit (range 21) 65237 | -5/Proximity Caves | Entered Factory 65237 | -5/Factory | Evolved 2 slots: Propulsion x1, Utility x1 65239 | -5/Factory | Loaded intel: 276 machine locations 65240 | -5/Factory | Loaded intel: 22 terminal locations 65336 | -5/Factory | Garrison activated, responded to threat 65370 | -5/Factory | Discovered new exit (range 15) 65385 | -5/Factory | Found Prototype Processor 65420 | -5/Factory | Identified exit to Upper Caves 65420 | -5/Factory | Identified exit to Extension 65639 | -5/Factory | Build established: Bothacker-Tank 65684 | -5/Factory | Identified Exp. Targeting Computer 65876 | -5/Factory | Found Prototype Launcher 65876 | -5/Factory | Identified Mni. Smartbomb Launcher 65907 | -5/Factory | Found Mni. Smartbomb Launcher 66000 | -5/Factory | Fabricated Com. HERF Cannon? 66114 | -5/Factory | Sucked down chute 66114 | -5/Factory | Entered Waste 66164 | -5/Waste | Destroyed C-40 Crusher 66169 | -5/Waste | Spotted C-40 Crusher 66219 | -5/Waste | Spotted C-40 Crusher 66236 | -5/Waste | Spotted C-40 Crusher 66248 | -5/Waste | Destroyed C-40 Crusher 66251 | -5/Waste | Destroyed C-40 Crusher 66272 | -5/Waste | Found Damper Plating 66378 | -5/Waste | Destroyed C-40 Crusher 66398 | -5/Waste | Found Damper Plating 66431 | -5/Waste | Spotted C-40 Crusher 66451 | -5/Waste | Discovered new exit (range 13) 66477 | -5/Waste | Destroyed C-40 Crusher 66483 | -5/Waste | Found Damper Plating 66492 | -5/Waste | Found Damper Plating 66550 | -5/Waste | Build established: Bothacker-Skirmisher 66566 | -5/Waste | Entered Factory 66693 | -5/Factory | Central database locked down 67156 | -5/Factory | Discovered new exit (range 15) 67235 | -5/Factory | Entered Extension 67837 | -5/Extension | Rescued a captive Derelict 67840 | -5/Extension | Rescued a captive Derelict 68052 | -5/Extension | Spotted B-75 Beast 68067 | -5/Extension | Allies destroyed B-75 Beast 68093 | -5/Extension | Spotted B-75 Beast 68108 | -5/Extension | Destroyed B-75 Beast 68472 | -5/Extension | Rescued a captive Derelict 68731 | -5/Extension | Rescued A7 68746 | -5/Extension | Rescued a captive Derelict 68747 | -5/Extension | Rescued a captive Derelict 68855 | -5/Extension | Discovered new exit (range 10) 68857 | -5/Extension | Discovered new exit (range 6) 68889 | -5/Extension | Entered Cetus 68889 | -5/Cetus | Accompanied by 11 allies (A7) 68894 | -5/Cetus | Acquired a Cetus Manufacturing Module code from A7 68913 | -5/Cetus | Spotted Cetus Guard 68913 | -5/Cetus | Spotted Cetus Guard 68913 | -5/Cetus | Destroyed Cetus Guard 68915 | -5/Cetus | Spotted Cetus Guard 68915 | -5/Cetus | Spotted Cetus Guard 68916 | -5/Cetus | Destroyed Cetus Guard 68920 | -5/Cetus | Allies destroyed Cetus Guard 68923 | -5/Cetus | Allies destroyed Cetus Guard 69101 | -5/Cetus | Destroyed A7 69106 | -5/Cetus | Extracted ID and sensor layout for unrecognized location from A7's data core 69209 | -5/Cetus | Started Cetus Manufacturing Module 69234 | -5/Cetus | Manufactured an Enhanced Grunt 69259 | -5/Cetus | Manufactured an Enhanced Grunt 69284 | -5/Cetus | Manufactured an Enhanced Grunt 69309 | -5/Cetus | Manufactured an Enhanced Grunt 69334 | -5/Cetus | Manufactured an Enhanced Grunt 69368 | -5/Cetus | Discovered new exit (range 15) 69399 | -5/Cetus | Destroyed Cetus Guard 69402 | -5/Cetus | Spotted Cetus Guard 69405 | -5/Cetus | Destroyed Cetus Guard 69406 | -5/Cetus | Spotted Cetus Guard 69413 | -5/Cetus | Destroyed Cetus Guard 69414 | -5/Cetus | Build established: Bothacker-Tank 69416 | -5/Cetus | Destroyed Cetus Guard 69459 | -5/Cetus | Entered Archives 69718 | -5/Archives | Discovered new exit (range 16) 69941 | -5/Archives | Discovered new exit (range 15) 70001 | -5/Archives | Discovered new exit (range 22) 70026 | -5/Archives | Entered Hub_04(d) 70027 | -5/Hub_04(d) | Discovered new exit (range 18) 70053 | -5/Hub_04(d) | Identified exit to Factory 70288 | -5/Hub_04(d) | Build established: Bothacker-Skirmisher 70343 | -5/Hub_04(d) | Network Hub disabled 70644 | -5/Hub_04(d) | Spotted Lightning 70645 | -5/Hub_04(d) | Spotted Lightning 70647 | -5/Hub_04(d) | Spotted Lightning 70647 | -5/Hub_04(d) | Network Hub disabled 70648 | -5/Hub_04(d) | Garrison activated, responded to threat 70658 | -5/Hub_04(d) | Destroyed Lightning 70658 | -5/Hub_04(d) | Destroyed Lightning 70658 | -5/Hub_04(d) | Destroyed Lightning 70683 | -5/Hub_04(d) | Found Prototype Energy Cannon 70691 | -5/Hub_04(d) | Found Prototype Energy Cannon 70776 | -5/Hub_04(d) | Identified exit to Garrison 70776 | -5/Hub_04(d) | Entered Garrison 70785 | -5/Garrison | Expanded RIF knowledge: Autoassimilate 70856 | -5/Garrison | Spotted B-75 Beast 70884 | -5/Garrison | Triggered checkpoint 70888 | -5/Garrison | Destroyed B-75 Beast 70988 | -5/Garrison | Triggered checkpoint 71136 | -5/Garrison | Triggered checkpoint 71304 | -5/Garrison | Discovered exit to Factory (range 8) 71454 | -5/Garrison | Entered Factory 71454 | -4/Factory | Evolved 2 slots: Utility x2 71549 | -4/Factory | Identified exit to Upper Caves 71663 | -4/Factory | Garrison activated, responded to threat 71704 | -4/Factory | First assault squad dispatched 71746 | -4/Factory | Destroyed 7 combat bots 71851 | -4/Factory | Sucked down chute 71851 | -4/Factory | Entered Waste 71866 | -4/Waste | EMP discharged 71936 | -4/Waste | Destroyed C-40 Crusher 71966 | -4/Waste | EMP discharged 71987 | -4/Waste | Spotted C-40 Crusher 71989 | -4/Waste | Spotted C-40 Crusher 71998 | -4/Waste | Destroyed C-40 Crusher 72021 | -4/Waste | Destroyed C-40 Crusher 72066 | -4/Waste | EMP discharged 72157 | -4/Waste | Build established: Scavenger-Skirmisher 72166 | -4/Waste | EMP discharged 72207 | -4/Waste | Spotted C-40 Crusher 72255 | -4/Waste | Destroyed C-40 Crusher 72258 | -4/Waste | Destroyed C-40 Crusher 72266 | -4/Waste | EMP discharged 72279 | -4/Waste | Found Damper Plating 72364 | -4/Waste | Spotted C-40 Crusher 72366 | -4/Waste | EMP discharged 72406 | -4/Waste | Destroyed C-40 Crusher 72466 | -4/Waste | EMP discharged 72488 | -4/Waste | Discovered new exit (range 16) 72515 | -4/Waste | Entered Factory 72543 | -4/Factory | Identified exit to Garrison 72543 | -4/Factory | Entered Garrison 72762 | -4/Garrison | Spotted B-86 Titan 72767 | -4/Garrison | Triggered checkpoint 72805 | -4/Garrison | Build established: Bothacker-Tank 72817 | -4/Garrison | Destroyed B-86 Titan 72838 | -4/Garrison | Destroyed 13 combat bots 72850 | -4/Garrison | Triggered checkpoint 72977 | -4/Garrison | Discovered new exit (range 14) 73118 | -4/Garrison | Build established: Scavenger-Tank 73223 | -4/Garrison | Discovered new exit (range 15) 73412 | -4/Garrison | Triggered checkpoint 73431 | -4/Garrison | Discovered new exit (range 15) 73471 | -4/Garrison | Expanded RIF knowledge: Threat Obfuscation 73666 | -4/Garrison | Entered Factory 73849 | -4/Factory | Build established: Bothacker-Mutant 73993 | -4/Factory | Identified exit to Garrison 73993 | -4/Factory | Entered Garrison 74093 | -4/Garrison | Identified EMDS (x2) 74135 | -4/Garrison | Phase Generator disabled 74192 | -4/Garrison | Triggered checkpoint 74244 | -4/Garrison | Discovered new exit (range 7) 74268 | -4/Garrison | Expanded RIF knowledge: Robot Detection 74280 | -4/Garrison | Entered Research 74280 | -3/Research | Evolved 2 slots: Utility x2 74281 | -3/Research | Identified exit to Armory 74471 | -3/Research | Identified exit to Testing 74480 | -3/Research | Revision forces began assault on 0b10 74494 | -3/Research | Met up with Revision 17++ 74583 | -3/Research | Build established: Botlord-Mutant 74689 | -3/Research | Discovered new exit (range 16) 74715 | -3/Research | Found Prototype Launcher 74715 | -3/Research | Identified Com. Tesla Bomb Launcher 74742 | -3/Research | Fabricated Prc. Matter Filter? 74743 | -3/Research | Found Antimissile System 74980 | -3/Research | Research terminal network offline 75084 | -3/Research | Entered Armory 75567 | -3/Armory | Build established: Bothacker-Mutant 75583 | -3/Armory | Fabricated Prc. Energy Filter (x1) 76359 | -3/Armory | Discovered new exit (range 13) 76431 | -3/Armory | Discovered new exit (range 10) 76635 | -3/Armory | Fabricated Biometal Heavy Treads (x2) 76658 | -3/Armory | Fabricated Biometal Heavy Treads (x2) 76723 | -3/Armory | Found Prototype Device 76723 | -3/Armory | Identified Exp. Thermal Shield 77037 | -3/Armory | Entered Lab 77040 | -3/Lab | Discovered new exit (range 9) 77058 | -3/Lab | Hidden lab's door opened automatically 77058 | -3/Lab | Sensor layout match revealed 77059 | -3/Lab | Gained access to the hidden lab's interior 77377 | -3/Lab | Found Alien Artifact 77384 | -3/Lab | Found Alien Artifact 77384 | -3/Lab | Identified Integrated Dissipator 77384 | -3/Lab | Installed Integrated Dissipator, increased core heat dissipation (+20) 77392 | -3/Lab | Found Alien Artifact 77423 | -3/Lab | Found Prototype Protection 77428 | -3/Lab | Found Prototype Energy Gun 77428 | -3/Lab | Identified Tachyon Dispersion Ray 77433 | -3/Lab | Found Tachyon Dispersion Ray 77487 | -3/Lab | Found Prototype Hackware 77546 | -3/Lab | Found Alien Artifact 77721 | -3/Lab | Identified Hvy. Regenerative Plating 77752 | -3/Lab | Entered Research 77752 | -2/Research | Evolved 2 slots: Power x1, Utility x1 77821 | -2/Research | Identified Deep Network Scanner 77897 | -2/Research | Discovered new exit (range 24) 77905 | -2/Research | Identified exit to Quarantine 77943 | -2/Research | Entered Access 77943 | -1/Access | Evolved 2 slots: Utility x2 78122 | -1/Access | Identified exit to Command 78203 | -1/Access | Build established: Wizard-Mutant 78266 | -1/Access | P-80 Master assimilated allied Director 10a 78609 | -1/Access | Destroyed 7 combat bots 78688 | -1/Access | Found Quantum Capacitor 78986 | -1/Access | Fabricated Exp. Armor Integrity Analyzer? 79040 | -1/Access | Local fabrication network quarantined 79501 | -1/Access | Entered Command 79606 | -1/Command | Identified exit to Surface 79878 | -1/Command | Spotted Combat Programmer 79879 | -1/Command | Spotted Combat Programmer 79880 | -1/Command | Spotted M Guard 79884 | -1/Command | Destroyed M Guard 79888 | -1/Command | System corruption reached 10% 79891 | -1/Command | Destroyed M Guard 79904 | -1/Command | Destroyed Combat Programmer 79913 | -1/Command | Destroyed Combat Programmer 79913 | -1/Command | All MAIN.C guards destroyed 79937 | -1/Command | Build established: Bothacker-Mutant 79938 | -1/Command | Lost 3 parts (1p1u1w) 79944 | -1/Command | Found Hvy. Regenerative Plating 79948 | -1/Command | Found Prototype Device 79948 | -1/Command | Identified AEGIS Remote Shield 79967 | -1/Command | Found Prototype Launcher 79967 | -1/Command | Identified Ragnarok Missile Launcher 79981 | -1/Command | Found Prototype Energy Cannon 79981 | -1/Command | Identified Cld. Nova Cannon 79988 | -1/Command | Found Zero-point Reactor 81392 | -1/Command | Build established: Hauler-Mutant 82199 | -1/Command | Met MAIN.C 82202 | -1/Command | 0b10 Conduit disabled 82245 | -1/Command | Destroyed MAIN.C Shell 82248 | -1/Command | MAIN.C activated Command garrisons 82304 | -1/Command | Destroyed MAIN.C 82352 | -1/Command | Found Zero-point Reactor 82360 | -1/Command | Found Prototype Ballistic Cannon 82427 | -1/Command | Found Exp. Targeting Computer 82432 | -1/Command | Destroyed 10 combat bots 82531 | -1/Command | Destroyed 18 combat bots 82536 | -1/Command | Found Prototype Protection 82536 | -1/Command | Identified Centrium Heavy Armor Plating 82604 | -1/Command | Identified Core Regenerator 82604 | -1/Command | Used Core Regenerator, restored core integrity (+349) 82626 | -1/Command | Build established: Scavenger-Gunner 82713 | -1/Command | Spotted B-99 Colossus 84635 | -1/Command | Door terminal overloaded 84656 | -1/Command | Found Prototype Processor 84656 | -1/Command | Identified Exp. Melee Analysis Suite 84660 | -1/Command | Found Prototype Device 84660 | -1/Command | Identified Beam Splitter 84663 | -1/Command | Found Prototype Device 84663 | -1/Command | Identified Exp. Force Field 84667 | -1/Command | Found Prototype Device 84667 | -1/Command | Identified Exp. Weapon Cycler 84671 | -1/Command | Found Prototype Device 84671 | -1/Command | Identified Adv. Particle Accelerator 84924 | -1/Command | Build established: Scavenger-Mutant 85191 | -1/Command | Found Prototype Ballistic Gun 85403 | -1/Command | Destroyed B-99 Colossus 85420 | -1/Command | Build established: Scavenger-Gunner 85432 | -1/Command | Found Prototype Ballistic Gun 85432 | -1/Command | Identified Multirail (x2) 85436 | -1/Command | Found Multirail 87464 | -1/Command | Found Prototype Reactor 87464 | -1/Command | Identified Vortex Chain Reactor 87469 | -1/Command | Found Zero-point Reactor 87611 | -1/Command | Identified Core Reset Matrix 87611 | -1/Command | Identified Transdimensional Reconstructor 87611 | -1/Command | Used Core Reset Matrix 87766 | -1/Command | Build established: Hauler-Gunner 87775 | -1/Command | Warped through subspace to slip node 87775 | -1/Command | Discovered new exit (range 5) 87790 | -1/Command | Entered Access_0 87791 | -1/Access_0 | Sensed 2 artifacts in vicinity 87793 | -1/Access_0 | Met Architect 87807 | -1/Access_0 | Architect warped through subspace 87820 | -1/Access_0 | Destroyed A8 87828 | -1/Access_0 | Identified Omega Cannon 87895 | -1/Access_0 | Architect warped through subspace 87972 | -1/Access_0 | Architect warped through subspace 88050 | -1/Access_0 | Architect warped through subspace 88053 | -1/Access_0 | Subspace Access Node disabled 88076 | -1/Access_0 | A6 warped into view 88083 | -1/Access_0 | Destroyed A6 88122 | -1/Access_0 | Architect warped through subspace 88122 | -1/Access_0 | Destroyed 9 combat bots 88132 | -1/Access_0 | Found Prototype Device 88137 | -1/Access_0 | Found Prototype Device 88137 | -1/Access_0 | Identified Desublimator 88159 | -1/Access_0 | Build established: Hauler-Mutant 88192 | -1/Access_0 | Architect warped through subspace 88203 | -1/Access_0 | Subspace Access Node disabled 88224 | -1/Access_0 | Found Core Regenerator 88224 | -1/Access_0 | Used Core Regenerator, restored core integrity (+269) 88259 | -1/Access_0 | Architect warped through subspace 88324 | -1/Access_0 | Architect warped through subspace 88381 | -1/Access_0 | Architect warped through subspace 88451 | -1/Access_0 | Architect warped through subspace 88463 | -1/Access_0 | Found Prototype Protection 88463 | -1/Access_0 | Identified Exp. Powered Armor 88497 | -1/Access_0 | Architect warped through subspace 88542 | -1/Access_0 | Architect warped through subspace 88596 | -1/Access_0 | Architect warped through subspace 88610 | -1/Access_0 | A5 warped into view 88628 | -1/Access_0 | Destroyed A5 88640 | -1/Access_0 | Architect warped through subspace 88689 | -1/Access_0 | Architect warped through subspace 88757 | -1/Access_0 | Architect warped through subspace 88780 | -1/Access_0 | Found Exp. Force Field 88823 | -1/Access_0 | Architect warped through subspace 88883 | -1/Access_0 | Architect warped through subspace 88888 | -1/Access_0 | Found Prototype Processor 88888 | -1/Access_0 | Identified Exp. Melee Analysis Suite 88954 | -1/Access_0 | Architect warped through subspace 89015 | -1/Access_0 | Architect warped through subspace 89056 | -1/Access_0 | Found Prototype Launcher 89056 | -1/Access_0 | Identified Adv. Micro-nuke Launcher 89092 | -1/Access_0 | Build established: Scavenger-Mutant 89094 | -1/Access_0 | Architect warped through subspace 89140 | -1/Access_0 | Subspace Access Node disabled 89153 | -1/Access_0 | Subspace Access Node disabled 89225 | -1/Access_0 | Identified Exp. Phase Shifter 89232 | -1/Access_0 | Found Beam Splitter 89242 | -1/Access_0 | Lost 5 parts (4u1w) 89334 | -1/Access_0 | Found Exp. Phase Shifter 89337 | -1/Access_0 | Found Desublimator 89739 | -1/Access_0 | Destroyed A2 89753 | -1/Access_0 | Extracted Singularity Gate Test 138-C access codes from A2's data core 89944 | -1/Access_0 | A4 warped into view 89980 | -1/Access_0 | Destroyed A4 89992 | -1/Access_0 | Found Hvy. Regenerative Plating 90214 | -1/Access_0 | Singularity Gate disabled 90222 | -1/Access_0 | Singularity Gate disabled 90659 | -1/Access_0 | Found Hpw. Transdimensional Reconstructor 90881 | -1/Access_0 | A3 warped into view 90938 | -1/Access_0 | Lost 3 parts (1u2w) 91190 | -1/Access_0 | Destroyed A3 91312 | -1/Access_0 | Crushed by falling debris 91343 | -1/Access_0 | Lost 3 parts (3u) 91380 | -1/Access_0 | Found Prototype Device 91380 | -1/Access_0 | Identified Exp. Shock Absorption System 92294 | -1/Access_0 | Released all parts (24) 92366 | -1/Access_0 | Found Exp. Melee Analysis Suite 92368 | -1/Access_0 | Found Exp. Melee Analysis Suite 92370 | -1/Access_0 | Found Exp. Melee Analysis Suite 92723 | -1/Access_0 | Destroyed Architect 92727 | -1/Access_0 | Found Hpw. Transdimensional Reconstructor 92727 | -1/Access_0 | Warped through subspace to slip node 92727 | -1/Access_0 | Discovered exit to Surface (range 8) 92729 | *** | Heading to fleet! Last Messages --------------- 92641_ System corrupted: Energy discharge (-1145). 92654_ Acquired 27 matter. 92676_ System corrupted: Energy discharge (-755). 92679_ Destroyed Prototype Protection. 92684_ Plasma Sword follow-up attack on Architect. 92691_ Acquired 37 matter. 92694_ Plasma Sword follow-up attack on Architect. 92706_ Destroyed Zero-point Reactor. 92706_ Destroyed Prototype Protection. 92706_ Plasma Sword follow-up attack on Architect. 92707_ System corrupted: Matter fused (-6). 92714_ Plasma Sword follow-up attack on Architect. 92719_ Destroyed Cld. Linear Gravjet. 92723_ Plasma Sword follow-up attack on Architect. 92723_ Architect: "Defeated by a malfunctioning replica of a piece of alien starship?! You've got*fzzt* be kiddi*bzzz*" 92723_ Architect destroyed. 92727_ Acquired Hpw. Transdimensional Reconstructor. 92727_ Warped through subspace, drawn to slip node. 92727_ EXIT=FOUND: SURFACE Map ----- +----------------------------------------------------+ | | | | | | | | | | | | | | | | | | | | | | | | | | | | | | | | | ?????????????????????????????????????????????????? | | ?????????????????????????????????????????????????? | | ?????????????????????????????????????????????????? | | ?????????????????????????????????????????????????? | | ?????????????????????????????????????????????????? | | ?????????????????????????????????????????????????? | | ????????????????????????###??????????????????????? | | ???????????????????????## ##?????????????????????? | | ???????????????????????# #?????????????????????? | | ???????????????????????# @ #?????????????????????? | | ??????????????????????## #?????????????????????? | | ??????????????????????# #?????????????????????? | | ??????????????????????# ##?????????????????????? | | ??????????????????????## #?????????????????????? | | ??????????????????????# #?????????????????????? | | ??????????????????????# ##?????????????????????? | | ??????????????????????# < #?????????????????????? | | ??????????????????????# ##?????????????????????? | | ??????????????????????## #??????????????????????? | | ???????????????????????####??????????????????????? | | ?????????????????????????????????????????????????? | | ?????????????????????????????????????????????????? | | ?????????????????????????????????????????????????? | | ?????????????????????????????????????????????????? | | ?????????????????????????????????????????????????? | | ?????????????????????????????????????????????????? | | ?????????????????????????????????????????????????? | | ?????????????????????????????????????????????????? | | ?????????????????????????????????????????????????? | | ?????????????????????????????????????????????????? | | ?????????????????????????????????????????????????? | | ?????????????????????????????????????????????????? | | ?????????????????????????????????????????????????? | | ?????????????????????????????????????????????????? | +----------------------------------------------------+ Best States ------------- Heat Dissipation 103 Coolant Potential 120 Energy Generation 61 Energy Capacity 3490 Matter Stores 800 Matter Capacity 800 Sight Range 22 Robot Scan Range 16 Terrain Scan Range 24 Terrain Scan Density 2010 Power Amplification 20 Armor Coverage 2400 Resistance: KI 30 Resistance: TH 75 Resistance: EX 75 Resistance: EM 90 Core Shielding 30 Utility Shielding 66 Weapon Shielding 66 Weapon Cycling 30 Phase Shifting 20 Evasion (%) 61 Targeting Accuracy 24 Melee Accuracy 36 Target Analysis 8 Armor Integrity Analysis 66 Recoil Reduction 4 Matter Filtering 50 Energy Filtering 50 Particle Charging 50 Kinecelleration 30 Salvage Targeting 1 Offensive Hacking 63 Defensive Hacking 14 Relay Coupler Types 187 Relay Coupler Value 1 Item Schematics ----------------- None Robot Schematics ------------------ None Fabricated ------------ Com. HERF Cannon | x1 | -5/Factory | Preloaded Prc. Matter Filter | x1 | -3/Research Prc. Energy Filter | x1 | -3/Armory Biometal Heavy Treads | x2 | -3/Armory | Preloaded Biometal Heavy Treads | x2 | -3/Armory | Preloaded Exp. Armor Integrity Analyzer | x1 | -1/Access Alien Tech Used ----------------- Core Expander Integrated Dissipator Core Regenerator Core Reset Matrix Transdimensional Reconstructor High-powered Transdimensional Reconstructor Achievements -------------- None Challenges ------------ None Game ------ Seed BiometalChipBroadsword Manual? 0 Play Time 06:19:52 Cumulative 1789.2 hours Start 2020.11.10 @ 14:18:41 End 2020.11.11 @ 02:01:57 Sessions 7 Manual Loads 0 Difficulty Rogue Special Mode None Game No. 2509 Rogue 2501 Adventurer 0 Explorer 8 Win Type 2 Total 177 Types 41/24/71/3/3/5/27/2/1 Lore% 99 Gallery% 99 Achievement% 100 Wizard Run 0 Options --------- ASCII 0 Keyboard 1 Movement Numpad Keybinds 1 Fullscreen 1 Font 18/SmallcapsGlow Map View 76x50 Tactical HUD 1 Map Filters NONE Filters NONE Steam 1 RUN: 1412689c-b55a-46d7-88ca-02378d0d001b